{"text_format":"1","workbook":"xlsx","n_sheets":2,"sheets":["تحليلى المبيعات","بيع الهلال (2)"],"not_rendered":{"charts":0,"images":0,"macros":0,"external_links":0,"defined_names":3,"comments":0,"pivot_tables":0},"unopened":[],"bounds":{"document_bytes":16777216,"sheet_cells":100000,"rows_first":2000,"rows_last":500,"rows_between":2000,"halvings":0,"cell_chars":16384,"cell_head_chars":4096},"cells_cut":0,"cells_raw":0,"read":"whole","date_system":"1900"}

{"sheet":"تحليلى المبيعات","index":0,"n_rows":732,"n_cols":12,"rows_kept":732,"cut":false,"hidden":false,"merged":[]}
["الكود","الصنف","الكميه","السعر","القيمه","الخصم","الصافى","المندوب","العميل","رقم الفاتوره","التاريخ","نسبه الخصم"]
[411010082,"مساحة زجاج الهلال 30 سم معدن",12,11.86,{"$f":"C2*D2","v":142.32},{"$f":"E2*0.07","v":9.9624000000000006},{"$f":"E2-F2","v":132.35759999999999},"احمد سمير","طارق",906,"2022-01-08"]
[411012509,"مساحة زجاج نوفا بالكاوتشه",12,15.367199999999999,{"$f":"C3*D3","v":184.40639999999999},{"$f":"E3*0.07","v":12.908448},{"$f":"E3-F3","v":171.497952},"احمد سمير","طارق",906,"2022-01-08"]
[null,null,null,null,0,0,0]
[null,null,null,null,0,0,0]
[null,null,null,null,0,0,0]
[null,null,null,null,0,0,0]
[null,null,null,null,0,0,0]
[null,null,null,null,0,0,0]
[null,null,null,null,0,0,0]
[null,null,null,null,0,0,0]
[null,null,null,null,0,0,0]
[null,null,null,null,0,0,0]
[null,null,null,null,0,0,0]
[null,null,null,null,0,0,0]
[null,null,null,null,0,0,0]
[null,null,null,null,0,0,0]
[null,null,null,null,0,0,0]
[null,null,null,null,0,0,0]
[null,null,null,null,0,0,0]
[null,null,null,null,0,0,0]
[null,null,null,null,0,0,0]
[]
[]
[]
[]
[]
[]
[]
[]
[]
[]
[]
[]
[]
[]
[]
[]
[]
[]
[]
[]
[]
[]
[]
[]
[]
[]
[]
[]
[]
[]
[]
[]
[]
[]
[]
[]
[]
[]
[]
[]
[]
[]
[]
[]
[]
[]
[]
[]
[]
[]
[]
[]
[]
[]
[]
[]
[]
[]
[]
[]
[]
[]
[]
[]
[]
[]
[]
[]
[]
[]
[]
[]
[]
[]
[]
[]
[]
[]
[]
[]
[]
[]
[]
[]
[]
[]
[]
[]
[]
[]
[]
[]
[]
[]
[]
[]
[]
[]
[]
[]
[]
[]
[]
[]
[]
[]
[]
[]
[]
[]
[]
[]
[]
[]
[]
[]
[]
[]
[]
[]
[]
[]
[]
[]
[]
[]
[]
[]
[]
[]
[]
[]
[]
[]
[]
[]
[]
[]
[]
[]
[]
[]
[]
[]
[]
[]
[]
[]
[]
[]
[]
[]
[]
[]
[]
[]
[]
[]
[]
[]
[]
[]
[]
[]
[]
[]
[]
[]
[]
[]
[]
[]
[]
[]
[]
[]
[]
[]
[]
[]
[]
[]
[]
[]
[]
[]
[]
[]
[]
[]
[]
[]
[]
[]
[]
[]
[]
[]
[]
[]
[]
[]
[]
[]
[]
[]
[]
[]
[]
[]
[]
[]
[]
[]
[]
[]
[]
[]
[]
[]
[]
[]
[]
[]
[]
[]
[]
[]
[]
[]
[]
[]
[]
[]
[]
[]
[]
[]
[]
[]
[]
[]
[]
[]
[]
[]
[]
[]
[]
[]
[]
[]
[]
[]
[]
[]
[]
[]
[]
[]
[]
[]
[]
[]
[]
[]
[]
[]
[]
[]
[]
[]
[]
[]
[]
[]
[]
[]
[]
[]
[]
[]
[]
[]
[]
[]
[]
[]
[]
[]
[]
[]
[]
[]
[]
[]
[]
[]
[]
[]
[]
[]
[]
[]
[]
[]
[]
[]
[]
[]
[]
[]
[]
[]
[]
[]
[]
[]
[]
[]
[]
[]
[]
[]
[]
[]
[]
[]
[]
[]
[]
[]
[]
[]
[]
[]
[]
[]
[]
[]
[]
[]
[]
[]
[]
[]
[]
[]
[]
[]
[]
[]
[]
[]
[]
[]
[]
[]
[]
[]
[]
[]
[]
[]
[]
[]
[]
[]
[]
[]
[]
[]
[]
[]
[]
[]
[]
[]
[]
[]
[]
[]
[]
[]
[]
[]
[]
[]
[]
[]
[]
[]
[]
[]
[]
[]
[]
[]
[]
[]
[]
[]
[]
[]
[]
[]
[]
[]
[]
[]
[]
[]
[]
[]
[]
[]
[]
[]
[]
[]
[]
[]
[]
[]
[]
[]
[]
[]
[]
[]
[]
[]
[]
[]
[]
[]
[]
[]
[]
[]
[]
[]
[]
[]
[]
[]
[]
[]
[]
[]
[]
[]
[]
[]
[]
[]
[]
[]
[]
[]
[]
[]
[]
[]
[]
[]
[]
[]
[]
[]
[]
[]
[]
[]
[]
[]
[]
[]
[]
[]
[]
[]
[]
[]
[]
[]
[]
[]
[]
[]
[]
[]
[]
[]
[]
[]
[]
[]
[]
[]
[]
[]
[]
[]
[]
[]
[]
[]
[]
[]
[]
[]
[]
[]
[]
[]
[]
[]
[]
[]
[]
[]
[]
[]
[]
[]
[]
[]
[]
[]
[]
[]
[]
[]
[]
[]
[]
[]
[]
[]
[]
[]
[]
[]
[]
[]
[]
[]
[]
[]
[]
[]
[]
[]
[]
[]
[]
[]
[]
[]
[]
[]
[]
[]
[]
[]
[]
[]
[]
[]
[]
[]
[]
[]
[]
[]
[]
[]
[]
[]
[]
[]
[]
[]
[]
[]
[]
[]
[]
[]
[]
[]
[]
[]
[]
[]
[]
[]
[]
[]
[]
[]
[]
[]
[]
[]
[]
[]
[]
[]
[]
[]
[]
[]
[]
[]
[]
[]
[]
[]
[]
[]
[]
[]
[]
[]
[]
[]
[]
[]
[]
[]
[]
[]
[]
[]
[]
[]
[]
[]
[]
[]
[]
[]
[]
[]
[]
[]
[]
[]
[]
[]
[]
[]
[]
[]
[]
[]
[]
[]
[]
[]
[]
[]
[]
[]
[]
[]
[]
[]
[]
[]
[]
[]
[]
[]
[]
[]
[]
[]
[]
[]
[]
[]
[]
[]
[]
[]
[]
[]
[]
[]
[]
[]
[]
[]
[]
[]
[]
[null,null,null,null,{"$f":"C722*D722","v":0},{"$f":"E722*7/100","v":0},{"$f":"E722-F722","v":0},null,null,null,null,{"$f":"F722/E722","v":{"$error":"#DIV/0!"}}]
[null,null,null,null,0,0,0,null,null,null,null,{"$error":"#DIV/0!"}]
[null,null,null,null,0,0,0,null,null,null,null,{"$error":"#DIV/0!"}]
[null,null,null,null,0,0,0,null,null,null,null,{"$error":"#DIV/0!"}]
[null,null,null,null,0,0,0,null,null,null,null,{"$error":"#DIV/0!"}]
[null,null,null,null,0,0,0,null,null,null,null,{"$error":"#DIV/0!"}]
[null,null,null,null,0,0,0,null,null,null,null,{"$error":"#DIV/0!"}]
[null,null,null,null,0,0,0,null,null,null,null,{"$error":"#DIV/0!"}]
[null,null,null,null,0,0,0,null,null,null,null,{"$error":"#DIV/0!"}]
[null,null,null,null,0,0,0,null,null,null,null,{"$error":"#DIV/0!"}]
[null,null,null,null,0,0,0]

{"sheet":"بيع الهلال (2)","index":1,"n_rows":126,"n_cols":199,"rows_kept":126,"cut":false,"hidden":false,"merged":[[114,1,114,3],[115,1,115,3],[116,1,116,3],[117,1,117,3]]}
[null,null,null,"المندوب",null,null,null,null,null,null,null,null,"شهر يوليو",null,null,"احمد سمير","احمد سمير","عمرو","عمرو","عمرو","عمرو","عمرو","احمد سمير","احمد سمير","عمرو","عمرو","عمرو","عمرو","عمرو","عمرو","عمرو","عمرو","عمرو","عمرو","احمد سمير","احمد سمير","احمد سمير","احمد سمير","احمد سمير","عمرو","احمد سمير","احمد سمير","احمد سمير","احمد سمير","احمد سمير","احمد سمير","احمد سمير","احمد سمير","احمد سمير","احمد سمير","احمد سمير","احمد سمير","احمد سمير","احمد سمير","احمد سمير","احمد سمير","احمد سمير","احمد سمير","عمرو","عمرو","عمرو","عمرو","عمرو","عمرو","عمرو","عمرو","عمرو","عمرو","عمرو","احمد سمير","احمد سمير","احمد سمير","احمد سمير","احمد سمير","عمرو","عمرو","عمرو","عمرو","عمرو","عمرو","عمرو","عمرو","عمرو","عمرو","عمرو","عمرو","احمد سمير","عمرو","عمرو","عمرو","عمرو","عمرو","عمرو","احمد سمير","احمد سمير","احمد سمير","احمد سمير","احمد سمير","عمرو","عمرو","عمرو","عمرو","احمد سمير","احمد سمير","احمد سمير","عمرو","عمرو","عمرو","عمرو","عمرو","عمرو","عمرو","عمرو","عمرو","احمد سمير","احمد سمير","احمد سمير","احمد سمير","احمد سمير","احمد سمير","احمد سمير","احمد سمير","احمد سمير","احمد سمير","احمد سمير","عمرو","عمرو","عمرو","عمرو","احمد سمير","احمد سمير","عمرو","عمرو","عمرو","عمرو","عمرو","عمرو","عمرو","احمد سمير","احمد سمير","احمد سمير","احمد سمير","عمرو","عمرو","عمرو","عمرو","عمرو","عمرو","احمد سمير","احمد سمير","احمد سمير","احمد سمير","احمد سمير","عمرو","عمرو","عمرو","عمرو","عمرو","احمد سمير","احمد سمير","احمد سمير","احمد سمير","عمرو","عمرو","عمرو","احمد سمير","عمرو","عمرو","عمرو","عمرو","عمرو","عمرو","احمد سمير","عمرو","عمرو","عمرو","جملة","عمرو","عمرو","احمد سمير","احمد سمير","احمد سمير"]
[null,null,null,"العميل",null,null,null,null,null,null,null,null,null,null,null,"طارق","الشعراوى","هايبر دلتا","ابو كامل","محمد الصعيدى","المصطفي","الحاج عيد","نادر","محمد طيبه","عم حسان","حسن ابو شهد","الاندلس","معرض الدكتور","عم حسن","علي عثمان","المهندس","المتميز","ابو يوسف","عيد جادو","حموده","النمر","جوده","ابو الورد","اريج","الحديدى","كاستيلو","زمزم","شوكه وسكينه","الشيخ","موناليزا","المصرى","التقي","ابو شريف","الصعيدى","محمد رمضان","روعه","شبانة","مسلم","السلطانه","السلطانه","المصري","البيت بيتك","الدلتا","ابو ادم","وائل","عم عصام","المصطفى","كارمن","حموده خميس","على عثمان","الاسلاميه","تو إم","ابو اليزيد الجبالى","السيد الشرقاوى","الحجرى","مطاوع","كساب","مصطفى","الملكه","ابو على","حسين عامر","جمال عاطف","ابو مريم","صلاح دكوس","علاء البحراوى","ام ساره","عم حسان","عم عبد الفتاح","البركه","المصطفي","عمب ابراهيم البدري","روائع نور","ابو ادم","احلى رغوه","معرض التوحيد","ام خلود","سيد العربي","ابو رحمه","المنر","حوده","على جوده","البنا","البنا","ابو مروه","بكر","وليد العمده","سامي","مالك دويدار","عبد الرحمن","وائل","مالك","بيت العيله","الكوثر","مهاب الحضري","محمد الشايب","المدينه المنوره","على اد الايد","الاسلاميه","القاسم","الزهراء","زمزم","الامانه","الشيخ","رامي","كاستيلو","السلام","المظلوم","المجد","الحكيم","المركز التركى","جمال عرفه","ام ساره","عم حسان","مصطفى نصار","يوسف","ابراهيم الكفراوى","الخليج","ام سوس","الحاج رمزى","ابو يوسف","معرض الشيف","اسواق عمر","معرض الرحمه","الحاج شحته","محمد رضا","ابو شبل","النقي","معرض السماك","حمزه لمنظفات","ايمن الظواهرى","معرض الاصيل","خليل سليمان","طارق العمده","هيثم السعدنى","هيثم السعدنى","على جوده","البنا","بيتك","ابو ادم","معرض الشهد","جمال عاطف","ابو احمد","ابو ربيع","زلط","كريستال","الحجرى","الزهراء","معرض منار","معرض فرنسا","الحاجه هانم","معرض رامى","الحاج عبوده","عم سمير","الايمان","ابو على","ايمن بركات","حسني","عباد الرحمن","وائل المصطفي","اخر العنقود","صلاح","السيد الشرقاوى","شركة البركة","معرض الاوقاف","بيت العروسه","محمد رمضان","البصار"]
[null,null,null,"رقم الفاتوره",null,null,null,null,null,null,null,null,null,null,null,906,907,303,307,306,305,308,908,909,310,311,312,313,314,315,316,317,318,319,911,912,914,916,917,null,918,919,920,921,922,923,"924-925",926,928,929,931,932,934,935,936,937,938,940,327,326,325,324,323,322,328,329,null,331,null,941,943,944,945,946,337,336,334,333,341,340,339,336,338,344,343,342,256,345,346,347,348,350,349,261,262,264,265,266,152,153,154,155,269,270,271,162,161,160,159,158,163,165,156,157,272,273,275,276,277,278,281,282,284,285,286,null,168,166,167,288,289,176,170,171,172,173,174,175,290,291,292,293,178,180,181,179,177,182,294,295,297,298,851,189,183,185,186,188,852,853,854,856,null,null,null,857,194,195,196,197,198,199,858,802,803,804,null,806,null,860,861,862]
["م","كود الصنف","Barcode","الإسم الجديد للمنتج على التغليف و السيستم","Brand","العائلة","الوحدة","قائمة الاساسيه  غير شامله الضريبه","قائمة الاساسيه   شامله الضريبه","قائمة الجمله   شامله الضريبه","قائمه الاسعار بعد الزياده شامله الضريبه ","قائمة التجزئه   شامله الضريبه","قائمه الاسعار بعد الزياده شامله الضريبه ","قائمه الاسعار بعد الزياده شامله الضريبه 23/7/2022","قائمه الاسعار بعد الزياده شامله الضريبه 22/8/2022","2022-08-01","2022-08-01","2022-08-01","2022-08-02","2022-08-02","2022-08-02","2022-08-02","2022-08-02","2022-08-02","2022-08-03","2022-08-03","2022-08-03","2022-08-03","2022-08-03","2022-08-04","2022-08-04","2022-08-04","2022-08-04","2022-08-04","2022-08-05","2022-08-05","2022-08-05","2022-08-06","2022-08-06","2022-08-07","2022-08-08","2022-08-08","2022-08-08","2022-08-08","2022-08-08","2022-08-08","2022-08-09","2022-08-10","2022-08-10","2022-08-10","2022-08-10","2022-08-10","2022-08-12","2022-08-12","2022-08-12","2022-08-12","2022-08-12","2022-08-12","2022-08-13","2022-08-13","2022-08-13","2022-08-13","2022-08-13","2022-08-13","2022-08-14","2022-08-14","2022-08-14","2022-08-14","2022-08-14","2022-08-14","2022-08-14","2022-08-14","2022-08-14","2022-08-14","2022-08-15","2022-08-15","2022-08-15","2022-08-15","2022-08-16","2022-08-16","2022-08-16","2022-08-16","2022-08-16","2022-08-17","2022-08-17","2022-08-17","2022-08-17","2022-08-18","2022-08-18","2022-08-18","2022-08-18","2022-08-18","2022-08-18","2022-08-18","2022-08-18","2022-04-18","2022-04-18","2022-04-18","2022-08-20","2022-08-20","2022-08-20","2022-08-20","2022-08-20","2022-08-20","2022-08-20","2022-08-21","2022-08-21","2022-08-21","2022-08-21","2022-08-21","2022-08-21","2022-08-21","2022-08-21","2022-08-21","2022-08-21","2022-08-21","2022-08-21","2022-08-21","2022-08-21","2022-08-21","2022-08-22","2022-08-22","2022-08-22","2022-08-22","2022-08-22","2022-08-22","2022-08-23","2022-08-23","2022-08-23","2022-08-23","2022-08-23","2022-08-24","2022-08-24","2022-08-24","2022-08-24","2022-08-24","2022-08-24","2022-08-24","2022-08-24","2022-08-24","2022-08-24","2022-08-24","2022-08-25","2022-08-25","2022-08-25","2022-08-25","2022-08-25","2022-08-25","2022-08-25","2022-08-25","2022-08-25","2022-08-25","2022-08-27","2022-08-27","2022-08-27","2022-08-27","2022-08-27","2022-08-27","2022-08-28","2022-08-28","2022-08-28","2022-08-28","2022-08-28","2022-08-28","2022-08-28","2022-08-29","2022-08-29","2022-08-29","2022-08-29","2022-08-29","2022-08-29","2022-08-29","2022-08-29","2022-08-30","2022-08-30","2022-08-30","2022-08-31","2022-08-31","2022-08-31","2022-08-31","2022-08-31","2022-08-31",null,null,"اجمالى البيع"]
[1,420119132,null,"باسكت دانتيلا مدور","Helal",null,"قطعة",null,null,null,26.120036250000002,null,26.120036250000002,26.120036250000002,{"$f":"N5","v":26.120036250000002},null,null,null,null,null,null,null,null,null,null,null,null,null,null,null,null,null,null,null,null,null,null,null,null,null,null,null,null,null,null,null,null,null,null,null,null,null,null,null,null,null,null,null,null,null,null,null,null,null,null,null,null,null,null,null,null,null,null,null,null,null,null,null,null,null,null,null,null,null,null,null,null,null,null,null,null,null,null,null,null,null,null,null,null,null,null,null,null,null,null,null,null,null,null,null,null,null,null,null,null,null,null,null,null,null,null,null,null,null,null,null,null,null,null,null,null,null,null,null,null,null,null,null,null,null,null,null,null,null,null,null,null,null,null,null,null,null,null,null,null,null,null,null,null,null,null,null,null,null,null,null,null,null,null,null,null,null,null,null,null,null,null,null,null,null,null,null,null,null,{"$f":"SUM(P5:BW5)","v":0}]
[2,420119133,null,"باسكت دانتيلا مربع","Helal",null,"قطعة",null,null,null,25.698222000000001,null,25.698222000000001,25.698222000000001,{"$f":"N6","v":25.698222000000001},null,null,null,null,null,null,null,null,null,null,null,null,null,null,null,null,null,null,null,null,null,null,null,null,null,null,null,null,null,null,null,null,null,null,null,null,null,null,null,null,null,null,null,null,null,null,null,null,null,null,null,null,null,null,null,null,null,null,null,null,null,null,null,null,null,null,null,null,null,null,null,null,null,null,null,null,null,null,null,null,null,null,null,null,null,null,null,null,null,null,null,null,null,null,null,null,null,null,null,null,null,null,null,null,null,null,null,null,null,null,null,null,null,null,null,null,null,null,null,null,null,null,null,null,null,null,null,null,null,null,null,null,null,null,null,null,null,null,null,null,null,null,null,null,null,null,null,null,null,null,null,null,null,null,null,null,null,null,null,null,null,null,null,null,null,null,null,null,null,0]
[3,410510072,6222016100725,"جاروف بلدوزر كبير بالكاوتشة باليد المعدن","Helal","فرشة بالجاروف","قطعة",23.684210526315791,{"$f":"H7+(H7*14%)","v":27.000000000000004},{"$f":"I7-(I7*12%)","v":23.760000000000005},29.7,{"$f":"I7-(I7*7%)","v":25.110000000000003},29.7,29.7,{"$f":"N7","v":29.7},null,null,null,null,null,null,null,null,null,null,null,null,null,null,null,null,null,null,null,null,null,null,null,null,null,null,null,null,null,null,null,null,null,null,null,null,null,null,null,null,null,null,null,null,null,null,null,null,null,null,null,null,null,null,null,null,null,null,null,null,null,null,null,null,null,null,null,null,null,null,null,null,null,null,null,null,null,null,null,null,null,null,null,null,null,null,null,null,null,null,null,null,null,null,null,null,null,null,null,null,null,null,null,null,null,null,null,null,null,null,null,null,null,null,null,null,null,null,null,null,null,null,null,null,null,null,null,null,null,null,null,null,5,null,null,null,null,null,null,null,null,null,null,null,null,null,null,null,null,null,null,null,null,null,null,null,null,null,null,null,null,null,null,null,null,null,null,null,null,0]
[4,410510351,null,"جاروف نوفا كبير باليد+مكنسه","Helal",null,"قطعة",null,null,null,64.900199999999998,{"$f":"I8-(I8*7%)","v":0},64.900199999999998,64.900199999999998,64.900199999999998,null,null,null,null,null,null,null,null,null,null,null,null,null,null,null,null,null,null,null,null,null,null,null,null,null,null,null,null,null,null,null,null,null,null,null,null,null,null,-1,null,null,null,null,-1,null,null,null,null,null,null,null,null,null,null,null,null,null,null,null,null,-2,null,null,null,null,null,null,null,null,null,null,null,null,null,null,null,null,null,null,null,null,null,null,null,null,-1,null,null,null,null,null,null,null,null,null,null,null,null,12,null,null,null,null,null,null,null,null,null,null,null,null,null,null,null,null,null,null,null,null,null,null,null,null,null,null,null,null,null,null,null,null,null,null,null,null,null,null,null,null,null,null,null,null,null,null,null,null,null,null,null,null,null,null,null,null,null,null,null,null,null,null,null,null,null,null,null,null,null,null,-2]
[5,410510071,6222016100718,"جاروف هلال بالكاوتشة","Helal","جاروف","قطعة",8.7719298245614041,{"$f":"H9+(H9*14%)","v":10},{"$f":"I9-(I9*12%)","v":8.8000000000000007},11,{"$f":"I9-(I9*7%)","v":9.3000000000000007},11,11,11,null,null,null,null,null,null,null,null,null,null,null,null,null,null,null,null,null,null,null,null,null,null,null,null,null,null,null,null,null,null,null,null,null,null,null,null,null,null,null,null,null,null,null,null,null,null,null,null,null,null,null,null,null,null,null,null,null,null,null,null,null,null,12,null,null,null,null,null,null,null,null,24,null,null,null,null,null,12,null,null,null,null,null,null,null,null,null,null,null,null,null,null,null,null,null,null,null,null,null,null,null,null,null,null,null,null,null,null,null,null,null,null,null,null,null,null,null,null,null,null,null,null,null,null,null,null,null,null,null,null,null,null,null,null,null,null,null,null,null,null,null,null,null,null,null,null,null,null,null,null,null,null,null,null,null,null,null,null,null,null,null,null,null,null,null,null,null,null,null,0]
[6,411210092,6222016100923,"جردل الهلال بيضاوي بالعصارة","Helal","جرادل","قطعة",52.178198852011434,{"$f":"H10+(H10*14%)","v":59.483146691293037},{"$f":"I10-(I10*12%)","v":52.345169088337869},65.430000000000007,{"$f":"I10-(I10*7%)","v":55.31932642290252},65.430000000000007,65.430000000000007,65.430000000000007,null,null,null,null,null,null,null,null,null,null,null,null,null,null,null,null,null,null,null,null,null,null,null,6,null,null,null,null,null,null,null,null,null,null,null,null,null,null,6,null,null,null,null,null,null,null,null,null,null,null,null,null,null,null,null,3,null,null,null,null,null,null,null,null,null,null,null,null,null,null,null,6,null,null,null,null,null,null,null,null,null,null,6,null,null,null,null,null,null,null,null,null,null,null,null,null,null,null,null,null,null,null,null,null,6,null,null,null,null,null,null,null,null,null,null,null,null,null,null,null,null,null,null,null,null,null,null,null,null,null,null,null,null,null,null,null,null,null,null,null,null,null,null,null,null,null,null,null,null,null,null,null,null,null,null,null,null,7,null,null,null,null,null,null,null,null,null,null,null,15,null,null,null,null,{"$f":"BS10*N10","v":196.29000000000002}]
[7,411210091,6222016100916,"جردل إسبيدو بالعصارة","Helal","جرادل","قطعة",143.08976079562333,{"$f":"H11+(H11*14%)","v":163.12232730701061},{"$f":"I11-(I11*12%)","v":143.54764803016934},179.43,{"$f":"I11-(I11*7%)","v":151.70376439551987},179.43,179.43,179.43,null,null,null,null,null,null,null,null,null,null,null,null,null,null,null,null,null,null,null,null,null,null,null,null,null,null,null,null,null,null,null,null,null,null,null,null,null,null,null,null,null,null,null,null,null,null,null,null,null,null,null,null,null,null,null,null,null,null,null,null,null,null,null,null,null,null,null,null,null,null,null,null,null,null,null,null,null,null,null,null,null,null,null,null,null,null,null,null,null,null,null,null,null,null,null,null,null,null,null,null,null,null,null,null,null,null,null,null,null,null,null,null,null,null,null,null,null,null,null,null,null,null,null,null,null,null,null,null,null,null,null,null,null,null,null,null,null,null,null,null,null,null,null,null,null,null,null,null,null,null,null,null,null,null,null,null,null,null,null,null,null,null,null,null,null,null,null,null,null,0]
[8,420718107,6222016181076,"جردل توتينز الهلال","Helal","جرادل","قطعة",51.754385964912288,{"$f":"H12+(H12*14%)","v":59.000000000000007},{"$f":"I12-(I12*12%)","v":51.920000000000009},72.61,null,72.61,72.61,72.61,null,null,null,null,null,null,null,null,null,null,null,null,null,null,null,null,null,null,null,null,null,null,6,null,null,null,null,null,null,null,null,6,null,11,null,null,null,null,12,null,null,null,null,6,null,null,null,null,null,null,null,null,null,-2,null,3,null,null,null,null,null,null,null,null,null,null,null,-3,9,null,8,6,null,null,null,null,6,null,null,null,-6,null,null,null,6,null,12,null,null,null,null,null,null,null,null,null,null,null,null,null,null,null,null,null,6,null,null,6,null,null,null,null,12,null,null,null,null,null,null,null,12,null,null,null,null,null,null,null,null,null,null,null,null,null,null,null,null,6,null,null,null,null,null,null,null,null,null,null,null,null,null,null,null,null,null,null,null,6,null,null,null,null,null,12,null,5,null,null,null,42,null,null,null,null,{"$f":"BS12*N12","v":217.82999999999998},null,null,null,{"$f":"GG12*M12","v":0},null,{"$f":"AU12*N12","v":435.65999999999997}]
[9,411619257,null,"جردل نوفا بدون عجل","Helal",null,"قطعة",null,null,null,108.90419999999999,null,108.90419999999999,108.90419999999999,108.90419999999999,null,null,null,null,null,null,null,null,null,null,null,null,null,null,null,null,null,null,null,null,null,null,null,null,null,null,null,null,null,null,null,null,null,null,null,null,null,null,null,null,null,null,null,null,null,null,null,null,null,null,null,null,null,null,null,null,null,null,null,null,null,null,null,null,null,null,null,null,null,null,null,null,null,null,null,null,null,null,null,null,null,null,null,null,null,null,null,null,null,null,null,null,null,null,null,null,null,null,null,null,null,null,null,null,null,null,null,null,null,null,null,null,null,null,null,null,null,null,null,null,null,null,null,null,null,null,null,null,null,null,null,null,null,null,null,null,null,null,null,null,null,null,null,null,null,null,null,null,null,null,null,null,null,null,null,null,null,null,null,null,null,null,null,null,null,null,null,null,null,0]
[10,411218014,null,"جردل نوفا مصفاه استانلس","Helal",null,"قطعة",null,null,null,260.2278,{"$f":"I14-(I14*7%)","v":0},260.2278,260.2278,260.2278,null,null,null,null,null,null,null,null,null,null,null,null,null,null,12,null,null,null,null,null,null,null,null,null,null,null,null,null,null,null,null,null,null,null,null,null,null,null,null,null,null,null,null,null,null,null,null,null,null,12,null,null,null,null,null,null,null,null,null,null,null,null,null,null,null,null,null,null,null,null,null,2,null,null,null,null,null,null,null,null,null,null,null,null,null,null,null,null,null,null,null,null,null,null,null,null,null,15,null,null,null,null,null,null,null,null,null,null,null,null,null,null,null,null,null,null,null,null,null,null,3,null,null,null,null,1,null,null,null,null,null,null,null,null,null,null,null,null,null,null,null,null,null,null,null,null,null,null,null,null,null,null,null,3,null,null,null,null,null,null,null,null,null,null,null,null,null,null,null,24]
[11,420115017,null,"زباله كوين 8 لتر","Helal","جردل","قطعة",null,56.03,{"$f":"I15-(I15*12%)","v":49.306400000000004},61.63,{"$f":"I15-(I15*7%)","v":52.107900000000001},61.63,61.63,61.63,null,null,null,null,null,null,4,null,null,null,null,null,null,null,null,null,null,null,null,null,null,null,null,null,null,null,null,null,null,null,null,null,null,null,null,null,null,null,null,null,null,null,null,null,null,null,null,null,null,null,4,null,null,null,null,null,null,null,null,null,null,null,null,null,null,null,null,null,null,null,null,null,null,null,null,null,null,null,null,null,null,null,null,null,null,null,null,null,null,null,null,null,null,null,null,null,null,null,null,null,null,null,null,null,null,null,null,null,null,null,null,null,null,null,null,null,null,null,null,null,null,null,null,null,null,null,null,null,null,null,null,null,null,null,null,null,null,null,null,null,null,null,null,null,null,null,null,null,null,null,null,null,null,null,null,null,null,null,null,null,null,null,null,null,null,null,null,null,null,8]
[12,420115022,null,"زباله نوفا 22 لتر","Helal",null,"قطعة",null,null,null,119,{"$f":"I16-(I16*7%)","v":0},119,119,119,null,null,null,null,null,null,null,null,null,null,null,null,null,null,null,null,null,null,null,null,null,null,null,null,null,null,null,null,null,null,null,null,null,null,null,null,null,null,null,null,null,null,null,null,null,null,null,null,null,null,null,null,null,null,null,null,null,null,null,null,null,null,null,null,null,null,null,null,null,null,null,null,null,null,null,null,null,null,null,null,null,null,null,null,null,null,null,null,null,null,null,null,null,null,null,null,null,null,null,null,null,null,null,null,null,null,null,null,null,null,null,null,null,null,null,null,null,null,null,null,null,null,null,null,null,null,null,null,null,null,null,null,null,null,null,null,null,null,null,null,null,null,null,null,null,null,null,null,null,null,null,null,null,null,null,null,null,null,null,null,null,null,null,null,null,null,null,null,null,0]
[13,410610085,6222016100855,"زعافة كورة الهلال بالإريال جامبو","Helal","زعافة","قطعة",26.315789473684212,{"$f":"H17+(H17*14%)","v":30.000000000000004},{"$f":"I17-(I17*12%)","v":26.400000000000002},33,null,39,39,39,null,null,null,null,null,null,null,null,null,null,null,null,null,null,null,null,null,null,null,null,null,null,null,null,null,null,null,null,null,null,null,null,null,null,null,null,null,null,null,null,null,null,null,null,null,null,null,null,null,null,null,null,null,null,null,null,null,null,null,null,null,null,null,null,null,null,null,null,null,null,null,null,null,null,null,null,null,null,null,null,null,null,null,null,null,null,null,null,null,null,null,null,null,null,null,null,null,null,null,null,null,null,null,null,null,null,null,null,null,null,null,null,null,null,null,null,null,null,null,null,null,null,null,null,null,null,null,null,null,null,null,null,null,null,null,null,null,null,null,null,null,null,null,null,null,null,null,null,null,null,null,null,null,null,null,null,null,null,null,null,null,null,null,null,null,null,null,null,null,0]
[14,410610375,6222016103757,"زعافة كورة الهلال بالإريال مدهون 21 مللي","Helal","زعافة","قطعة",{"$f":"26/1.14","v":22.807017543859651},{"$f":"H18+(H18*14%)","v":26.000000000000004},{"$f":"I18-(I18*12%)","v":22.880000000000003},27.64,{"$f":"I18-(I18*7%)","v":24.180000000000003},32,32,32,null,null,null,null,null,null,null,null,null,18,null,null,18,null,null,null,null,null,null,null,null,null,null,null,null,null,null,6,null,null,null,6,null,null,null,null,12,null,null,null,6,null,null,null,null,29,null,null,6,null,null,null,null,118,6,6,12,null,null,null,null,null,null,null,null,null,36,null,null,null,6,36,null,null,null,null,null,7,null,6,12,6,null,null,12,24,null,6,6,null,null,null,null,null,null,null,null,null,null,null,24,null,null,null,null,24,null,null,null,null,null,36,6,24,null,null,null,6,12,12,null,null,null,24,null,null,null,null,6,null,null,12,null,null,null,null,null,null,null,null,312,18,6,null,18,6,null,6,12,null,null,null,null,null,null,null,null,18,null,24,null,186,null,null,6,null,null,null,null,243,null,null,null,null,{"$f":"BS18*N18","v":192},null,null,null,null,null,{"$f":"AU18*N18","v":192}]
[15,410610098,6222016100985,"زعافة كورة الهلال بالإريال مطبوع","Helal","زعافة","قطعة",25.438596491228072,{"$f":"H19+(H19*14%)","v":29.000000000000004},{"$f":"I19-(I19*12%)","v":25.520000000000003},31.9,26.970000000000002,35,35,35,null,24,null,null,12,null,12,null,null,null,null,null,null,null,null,null,null,null,null,null,18,null,null,6,null,null,null,null,null,null,null,6,null,null,null,null,null,null,null,null,null,null,null,null,null,null,null,null,null,null,null,null,null,null,null,null,null,null,null,null,null,null,null,null,null,null,null,null,null,null,null,null,null,null,null,null,null,null,null,null,null,null,null,null,null,null,null,null,null,null,null,null,null,null,null,null,null,null,null,null,null,null,null,null,null,null,null,null,null,null,null,null,null,null,null,null,null,null,null,null,null,null,null,null,null,null,null,null,null,null,null,null,null,null,null,null,null,null,null,null,null,null,null,null,null,null,null,null,null,null,null,null,null,null,null,null,null,null,null,null,null,null,null,null,null,null,null,null,null,78,null,null,null,null,null,null,null,null,null,null,210]
[16,410612801,null,"زعافه نوفا","Helal",null,"قطعة",null,null,null,49.498799999999996,0,49.498799999999996,49.498799999999996,49.498799999999996,null,null,36,null,null,null,null,null,null,null,null,null,null,null,null,null,null,null,null,null,null,null,null,null,null,null,null,null,null,null,null,12,null,null,null,null,null,null,null,null,null,null,null,null,null,12,12,null,null,null,null,null,null,null,null,null,null,null,null,null,null,null,null,null,null,12,null,null,null,null,null,12,null,null,null,null,null,null,null,null,12,null,null,12,null,null,null,null,null,null,null,null,null,null,null,null,null,null,null,null,null,null,null,null,null,null,null,null,null,null,null,null,null,null,null,null,null,null,null,null,null,null,null,null,null,12,null,null,null,null,null,null,null,null,null,24,null,null,null,null,null,null,null,null,null,null,null,null,null,null,24,null,null,null,null,null,null,null,null,null,null,null,null,12,null,null,null,null,null,72,null,null,null,null,null,null,null,null,null,null,593.98559999999998]
[17,411116979,6222016169791,"سلاكة هلال جامبو ييد عكاز بلاستيك","Helal","سلاكة","قطعة",{"$f":"19.95/1.14","v":17.5},{"$f":"H21+(H21*14%)","v":19.95},{"$f":"I21-(I21*12%)","v":17.556000000000001},21.95,18.5535,21.95,21.95,21.95,null,null,null,null,null,null,null,null,null,null,null,null,null,null,null,null,null,null,null,null,null,null,6,null,null,null,null,6,null,12,null,null,null,null,null,null,null,null,null,null,null,null,null,null,null,null,null,null,null,null,null,null,null,null,null,null,null,null,12,null,null,null,12,null,null,null,null,null,null,null,null,19,null,null,null,null,null,null,12,null,null,null,null,null,null,null,null,null,null,null,null,null,null,null,null,null,null,null,null,null,null,null,null,null,null,null,null,null,null,null,null,null,null,null,null,null,null,null,null,null,null,12,null,null,null,12,null,null,null,null,null,null,6,null,null,null,null,null,null,null,null,null,null,null,null,null,12,null,null,null,null,null,null,null,12,null,null,null,null,null,null,48,null,null,null,null,null,null,null,36]
[18,411110073,null,"سلاكه نوفا باليد بلاستيك عاديه","Helal",null,"قطعة",null,null,null,21.887999999999998,0,21.887999999999998,21.887999999999998,21.887999999999998,null,null,null,null,null,null,null,null,null,null,null,null,null,null,null,null,null,null,null,null,null,null,null,null,null,null,null,null,null,null,null,null,null,null,null,null,null,null,null,null,null,null,null,null,null,null,null,null,null,null,null,null,null,null,null,null,null,null,null,null,null,null,null,null,null,null,null,null,null,null,null,null,null,null,null,null,null,null,null,null,null,null,null,null,null,null,null,null,null,null,null,null,null,null,null,null,null,null,null,null,null,null,null,null,null,null,null,null,null,null,null,null,null,null,null,null,null,null,null,null,null,null,null,null,null,null,null,null,null,null,null,null,null,null,null,null,null,null,null,null,null,null,null,null,null,null,null,null,null,null,null,null,null,null,null,null,null,null,null,null,null,null,null,null,null,null,null,null,null,0]
[19,420916974,null,"طقم ثلاجة نوفا مستطيل 3 علبة 1 لتر","Helal",null,"قطعة",null,null,null,20.896199999999997,0,20.896199999999997,20.896199999999997,20.896199999999997,null,null,null,null,null,null,null,null,null,null,null,null,null,null,null,null,null,null,null,null,null,null,null,null,null,null,null,null,null,null,null,null,null,null,null,null,null,null,null,null,null,null,null,null,null,null,null,null,null,null,null,null,null,null,null,null,null,null,null,null,null,null,null,null,null,null,null,null,null,null,null,null,null,null,null,null,null,null,null,null,null,null,null,null,null,null,null,null,null,null,null,null,null,null,null,null,null,null,null,null,null,null,null,null,null,null,null,null,null,null,null,null,null,null,null,null,null,null,null,null,null,null,null,null,null,null,null,null,null,null,null,null,null,null,null,null,null,null,null,null,null,null,null,null,null,null,null,null,null,null,null,null,null,null,null,null,null,null,null,null,null,null,null,null,null,null,null,null,null,0]
[20,420916978,null,"طقم علبة ثلاجه نوفا 1000 مللى 3 علبه","Helal",null,"قطعة",null,null,null,20.896199999999997,0,20.896199999999997,20.896199999999997,20.896199999999997,null,null,null,null,null,null,null,null,null,null,null,null,null,null,null,null,null,null,null,null,null,null,null,null,null,null,null,null,null,null,null,null,null,null,null,null,null,null,null,null,null,null,null,null,null,null,null,null,null,null,null,null,null,null,null,null,null,null,null,null,null,null,null,null,null,null,null,null,null,null,null,null,null,null,null,null,null,null,null,null,null,null,null,null,null,null,null,null,null,null,null,null,null,null,null,null,null,null,null,null,null,null,null,null,null,null,null,null,null,null,null,null,null,null,null,null,null,null,null,null,null,null,null,null,null,null,null,null,null,null,null,null,null,null,null,null,null,null,null,null,null,null,null,null,null,null,null,null,null,null,null,null,null,null,null,null,null,null,null,null,null,null,null,null,null,null,null,null,null,0]
[21,420916976,null,"طقم علبة ثلاجه نوفا 500 مللى 3 علبه","Helal",null,"قطعة",null,null,null,13.201199999999998,0,13.201199999999998,13.201199999999998,13.201199999999998,null,null,null,null,null,null,null,null,null,null,null,null,null,null,null,null,null,null,null,null,null,null,null,null,null,null,null,null,null,null,null,null,null,null,null,null,null,null,null,null,null,null,null,null,null,null,null,null,null,null,null,null,null,null,null,null,null,null,null,null,null,null,null,null,null,null,null,null,null,null,null,null,null,null,null,null,null,null,null,null,null,null,null,null,null,-2,null,null,null,null,null,null,null,null,null,null,null,null,null,null,null,null,null,null,null,null,null,null,null,null,null,null,null,null,null,null,null,null,null,null,null,null,null,null,null,null,null,null,null,null,null,null,null,null,null,null,null,null,null,null,null,null,null,null,null,null,null,null,null,null,null,null,null,null,null,null,null,null,null,null,null,null,null,null,null,null,null,null,null,0]
[22,420916977,null,"طقم علبة ثلاجه نوفا 750 مللى 3 علبه","Helal",null,"قطعة",null,null,null,16.495799999999999,0,16.495799999999999,16.495799999999999,16.495799999999999,null,null,null,null,null,null,null,null,null,null,null,null,null,null,null,null,null,null,null,null,null,null,null,null,null,null,null,null,null,null,null,null,null,null,null,null,null,null,null,null,null,null,null,null,null,null,null,null,null,null,null,null,null,null,null,null,null,null,null,null,null,null,null,null,null,null,null,null,null,null,null,null,null,null,null,null,null,null,null,null,null,null,null,null,null,null,null,null,null,null,null,null,null,null,null,null,null,null,null,null,null,null,null,null,null,null,null,null,null,null,null,null,null,null,null,null,null,null,null,null,null,null,null,null,null,null,null,null,null,null,null,null,null,null,null,null,null,null,null,null,null,null,null,null,null,null,null,null,null,null,null,null,null,null,null,null,null,null,null,null,null,null,null,null,null,null,null,null,null,0]
[23,420916975,null,"طقم علبة ثلاجه نوفا مشكل 3 علبة","Helal",null,"قطعة",null,null,null,16.495799999999999,0,16.495799999999999,16.495799999999999,16.495799999999999,null,null,null,null,null,null,null,null,null,null,null,null,null,null,null,null,null,null,null,null,null,null,null,null,null,null,null,null,null,null,null,null,null,null,null,null,null,null,null,null,null,null,null,null,null,null,null,null,null,null,null,null,null,null,null,null,null,null,null,null,null,null,null,null,null,null,null,null,null,null,null,null,null,null,null,null,null,null,null,null,null,null,null,null,null,null,null,null,null,null,null,null,null,null,null,null,null,null,null,null,null,null,null,null,null,null,null,null,null,null,null,null,null,null,null,null,null,null,null,null,null,null,null,null,null,null,null,null,null,null,null,null,null,null,null,null,null,null,null,null,null,null,null,null,null,null,null,null,null,null,null,null,null,null,null,null,null,null,null,null,null,null,null,null,null,null,null,null,null,0]
[24,411310541,6222016105416,"غيار قطنة اسبيدو","Helal","موب","قطعة",13.16,{"$f":"H28+(H28*14%)","v":15.0024},{"$f":"I28-(I28*12%)","v":13.202112},16.5,13.952232,16.5,16.5,16.5,null,null,null,null,null,null,null,null,null,null,null,null,null,null,null,null,null,null,null,null,null,null,null,null,null,null,null,null,null,null,null,null,null,null,null,null,null,null,null,null,null,null,null,null,null,null,null,null,null,null,null,null,null,null,null,null,null,null,null,null,null,null,null,null,null,null,null,null,null,null,null,null,null,null,null,null,null,null,null,null,null,null,null,null,null,null,null,null,null,null,null,null,null,null,null,null,null,null,null,null,null,null,null,null,null,null,null,null,null,null,null,null,null,null,null,null,null,null,null,null,null,null,null,null,null,null,null,null,null,null,null,null,null,null,null,null,null,null,null,null,null,null,null,null,null,null,null,null,null,null,null,null,null,null,null,null,null,null,null,null,null,null,null,null,null,null,null,null,null,0]
[25,410310111,6222016101111,"فرشة استحمام الهلال","Helal","فرشة استحمام","قطعة",9.7497287032013027,{"$f":"H29+(H29*14%)","v":11.114690721649485},{"$f":"I29-(I29*12%)","v":9.7809278350515463},12.23,10.33666237113402,12.23,12.23,12.23,null,null,null,null,null,null,null,null,null,null,null,null,null,null,null,null,null,null,null,null,null,null,null,null,null,null,null,6,null,null,null,null,null,null,null,null,null,null,null,null,null,null,null,null,null,null,null,null,null,null,null,null,null,36,null,null,null,null,null,null,null,240,null,null,null,null,null,null,null,null,null,12,null,null,null,null,null,null,18,null,null,null,null,null,null,null,null,null,null,null,null,null,null,null,null,null,null,null,null,null,null,null,null,null,null,null,null,null,null,null,null,null,null,null,null,null,null,null,null,null,null,null,null,null,null,null,null,null,null,null,null,null,null,null,null,null,null,null,null,null,null,null,null,null,null,null,null,null,null,null,null,null,null,null,null,null,null,null,null,null,null,null,null,null,null,null,null,null,null,42]
[26,411619254,null,"فرشة استحمام نوفا","Helal",null,"قطعة",null,null,null,20.896199999999997,0,20.896199999999997,20.896199999999997,20.896199999999997,null,null,null,null,null,null,null,null,null,null,null,null,12,null,null,null,null,null,null,null,null,null,null,null,null,null,null,null,null,12,null,18,null,null,null,null,null,null,null,null,null,null,null,null,null,null,null,null,null,null,null,null,null,null,null,null,null,null,null,null,null,null,null,null,null,null,null,null,null,null,null,null,null,null,null,null,null,null,null,null,null,null,null,null,null,null,null,null,null,null,null,null,null,null,null,null,null,null,null,null,null,null,null,null,null,null,null,null,null,null,null,null,null,null,null,null,null,null,null,null,null,null,null,null,null,null,null,null,null,null,null,null,null,null,null,null,null,null,null,null,null,null,null,null,null,null,null,null,null,null,null,null,null,null,null,null,null,null,null,null,null,null,null,null,null,null,null,null,null,42,null,null,null,null,{"$f":"AB30*N30","v":250.75439999999998},null,null,null,null,null,{"$f":"AU30*N30","v":376.13159999999993}]
[27,410310336,null,"فرشة اطباق نوفا","Helal",null,"قطعة",null,null,null,11.000999999999999,0,11.000999999999999,11.000999999999999,{"$f":"N31","v":11.000999999999999},12,null,null,null,null,null,null,null,null,null,null,null,null,null,null,null,null,null,null,null,null,null,null,null,null,null,null,null,null,null,null,null,null,null,null,null,null,null,null,null,null,null,null,null,null,null,null,null,null,null,null,48,null,null,null,null,null,null,null,null,null,null,null,null,null,null,null,null,null,null,null,null,null,null,null,null,null,null,null,null,null,null,null,null,null,null,null,null,null,null,null,null,null,null,null,null,null,null,null,null,null,null,null,null,null,null,null,null,null,null,null,null,null,null,null,null,null,null,null,null,null,null,null,null,null,null,null,null,null,null,null,null,null,null,null,null,null,null,null,null,null,null,null,null,null,null,null,null,null,null,null,null,null,null,null,null,null,null,null,null,null,null,null,null,null,null,null,null,null,60]
[28,510801002,null,"فرشة الفراشه","Helal","فرش و مكانس","قطعة",null,null,null,27.5,0,27.5,27.5,{"$f":"N32","v":27.5},null,null,null,null,null,null,null,null,null,null,null,null,null,null,null,null,null,null,null,null,null,null,null,null,null,null,null,null,null,null,null,null,null,null,null,null,null,null,null,null,null,null,null,null,null,null,null,null,null,null,null,null,null,null,null,null,null,null,null,null,null,null,null,null,null,null,null,null,null,null,null,null,null,null,null,null,null,null,null,null,null,null,null,null,null,null,null,null,null,null,null,null,null,null,null,null,null,null,null,null,null,null,null,null,null,null,null,null,null,null,null,null,null,null,null,null,null,null,null,null,null,null,null,null,null,null,12,null,null,null,null,null,null,null,null,null,null,null,null,null,null,null,null,null,null,null,null,null,null,null,null,null,null,null,null,null,null,null,null,null,null,null,null,null,null,null,null,null,null,0,null,null,null,null,null,null,null,null,{"$f":"GG32*M32","v":0},null,null,null,24.12,{"$f":"GP32*1.14","v":27.4968}]
[29,410110000,6222016100008,"فرشة الهلال متعددة الاغراض ( سيارات )","Helal","فرش متنوعة","قطعة",20.188832163194611,{"$f":"H33+(H33*14%)","v":23.015268666041855},{"$f":"I33-(I33*12%)","v":20.253436426116831},25.32,21.404199859418924,25.32,25.32,25.32,null,null,null,null,null,null,null,null,null,null,null,null,null,null,null,null,null,null,null,null,null,null,null,null,null,12,null,null,null,null,null,12,null,null,null,null,null,null,null,null,null,null,null,null,null,null,null,null,null,null,null,null,null,null,null,null,null,null,null,null,null,null,null,null,null,null,null,null,null,null,null,12,null,null,null,null,null,null,null,null,null,12,null,null,null,null,null,null,null,null,null,null,null,null,null,null,null,null,null,null,null,null,null,null,null,null,null,null,null,null,null,null,null,null,null,null,null,null,null,null,null,null,null,null,null,null,null,null,null,null,null,null,null,null,null,null,12,6,null,null,null,null,null,null,null,null,null,null,null,null,null,null,null,null,null,null,null,null,null,null,null,null,null,null,null,null,null,null,null,24,null,null,null,null,null,null,null,null,null,null,{"$f":"AU33*N33","v":303.84000000000003}]
[30,410110066,6222016100664,"فرشة ايديال خشنة","Helal","فرش و مكانس","قطعة",11.586634111050826,{"$f":"H34+(H34*14%)","v":13.208762886597942},{"$f":"I34-(I34*12%)","v":11.623711340206189},14.53,12.284149484536085,14.53,15.98,15.98,null,null,null,null,null,null,null,null,null,null,null,null,null,null,null,null,null,null,null,null,null,null,null,null,null,null,null,null,null,null,null,null,null,null,null,12,null,null,null,null,null,null,null,null,null,null,null,null,null,null,null,null,null,null,null,null,null,null,null,null,null,null,null,null,null,null,null,null,null,null,null,null,null,null,null,null,null,null,null,null,null,null,null,null,null,null,null,null,null,null,null,null,null,null,null,null,null,null,null,null,null,null,null,null,null,null,null,null,null,null,null,null,null,null,null,null,null,null,null,null,null,null,null,null,null,null,null,null,null,null,12,null,12,null,null,null,null,null,null,null,null,null,null,null,null,null,null,null,null,null,null,null,null,null,null,null,null,null,null,null,null,null,null,null,null,null,null,null,null,12]
[31,410110065,6222016100657,"فرشة ايديال ناعمة ","Helal","فرش و مكانس","قطعة",10.626987628105244,{"$f":"H35+(H35*14%)","v":12.114765896039978},{"$f":"I35-(I35*12%)","v":10.66099398851518},13.28,11.266732283317181,13.28,14.61,14.61,null,null,null,null,null,null,null,null,null,null,null,null,null,12,null,null,null,null,null,null,null,null,null,12,null,null,null,null,null,null,null,null,null,null,null,null,null,null,null,null,null,null,null,null,null,null,null,null,null,null,null,null,null,null,null,null,null,null,null,null,null,null,null,null,null,null,null,null,null,null,null,null,null,null,null,null,null,null,null,null,null,null,null,null,null,null,null,null,null,null,null,null,null,null,null,null,null,null,null,null,null,null,null,null,null,null,null,null,null,null,null,null,null,null,null,null,null,null,null,null,null,null,null,null,null,null,null,null,null,null,null,null,null,null,null,null,null,null,null,null,null,null,null,12,null,null,null,null,null,null,null,null,null,null,null,null,null,null,null,null,null,null,null,null,null,null,null,null,null,24,null,null,null,null,null,null,null,null,{"$f":"GG35*M35","v":0}]
[32,410310119,6222016101197,"فرشة أحواض الهلال","Helal","فرشة أحواض ","قطعة",10.340621351880168,{"$f":"H36+(H36*14%)","v":11.788308341143392},{"$f":"I36-(I36*12%)","v":10.373711340206185},12.97,10.963126757263353,12.97,12.97,12.97,null,null,null,null,null,null,null,null,null,null,null,null,null,null,null,null,null,null,null,null,24,null,null,null,null,null,null,null,null,null,null,null,null,null,null,null,null,null,null,null,null,null,null,null,null,null,null,null,null,null,null,null,null,null,null,null,null,null,null,null,null,null,null,null,null,null,null,null,null,null,null,12,null,null,null,null,null,null,null,null,null,12,null,null,null,null,null,null,null,null,null,null,null,null,null,null,null,null,null,null,null,null,null,null,null,null,null,null,null,null,null,null,null,null,null,null,null,null,null,null,null,null,null,null,null,null,null,null,null,null,null,null,null,null,null,null,null,null,null,null,null,null,null,null,null,null,null,null,null,null,null,null,null,null,null,null,null,null,null,null,null,null,null,null,null,null,null,null,null,24,null,null,null,null,null,null,null,null,{"$f":"GG36*M36","v":0},{"$f":"#REF!+#REF!+BR36+BK36+BJ36+#REF!+#REF!+AX36+AG36+AB36+#REF!+T36+R36+GL36","v":{"$error":"#REF!"}},null,null,11.38,{"$f":"GP36*1.14","v":12.9732}]
[33,410310160,6222016101609,"فرشة أطباق الهلال","Helal","فرشة أطباق","قطعة",7.0175438596491233,{"$f":"H37+(H37*14%)","v":8},{"$f":"I37-(I37*12%)","v":7.04},8.8000000000000007,7.4399999999999995,8.8000000000000007,8.8000000000000007,8.8000000000000007,null,null,null,null,null,null,null,null,null,null,null,null,null,null,null,null,null,null,null,null,null,null,null,null,null,null,null,null,null,null,null,null,null,null,null,null,null,null,null,null,null,null,null,null,null,null,null,null,null,null,null,null,null,null,null,null,null,null,null,null,null,null,null,null,null,null,null,null,null,null,null,12,null,null,null,null,null,null,null,null,null,null,null,null,null,null,null,null,null,null,null,null,null,null,null,null,null,null,null,null,null,null,null,null,null,null,null,null,null,null,null,null,null,null,null,null,null,null,null,null,null,null,null,null,null,null,null,null,null,null,null,null,null,null,null,null,null,null,null,null,null,null,null,null,null,null,null,null,null,null,null,null,null,null,null,null,null,null,null,null,null,null,null,null,null,null,null,null,null,{"$f":"SUM(P37:BW37)","v":0}]
[34,410534089,null,"فرشة بالجاروف  نوفا كبير","Helal",null,"قطعة",null,null,null,16.495799999999999,0,16.495799999999999,16.495799999999999,{"$f":"15.51*1.14","v":17.6814},null,null,null,null,null,null,null,null,null,null,null,null,null,null,null,null,null,null,null,null,null,null,null,null,null,null,null,null,null,null,null,null,null,null,null,null,null,null,null,null,null,null,null,null,null,null,null,null,null,null,null,null,null,null,null,null,null,null,null,null,null,null,null,null,null,null,null,null,null,null,null,null,null,null,null,null,null,null,null,null,null,null,null,null,null,null,null,null,null,null,null,null,null,null,24,null,null,null,null,null,null,null,null,null,null,null,null,null,null,null,null,null,null,null,null,null,null,null,null,null,null,null,24,null,null,null,null,12,null,null,null,null,null,null,null,null,null,null,6,null,null,null,null,null,null,null,null,null,null,null,null,null,null,null,null,null,null,null,null,null,null,null,null,null,null,null,null,null,null,0]
[35,410512903,6222016129030,"فرشة بالجاروف باليد الهلال","Helal","فرشة بالجاروف","قطعة",42.982456140350884,{"$f":"H39+(H39*14%)","v":49.000000000000007},{"$f":"I39-(I39*12%)","v":43.120000000000005},51.25,null,51.25,51.25,51.25,null,null,12,null,null,null,12,null,null,null,null,null,null,12,null,null,null,null,null,9,null,null,null,null,null,null,null,null,null,null,null,null,null,12,null,null,null,null,null,null,null,null,null,null,null,12,6,6,null,null,null,null,null,null,null,null,12,null,null,null,null,null,null,null,null,null,24,null,null,9,null,12,null,null,null,null,null,null,null,null,null,12,null,null,null,null,null,null,null,null,12,null,null,null,null,null,null,null,null,null,null,12,null,null,null,null,null,null,null,null,null,-2,null,null,null,null,null,null,null,null,null,2,null,null,12,null,null,null,null,null,null,12,6,null,null,null,null,6,null,null,null,-1,null,-1,null,6,null,null,null,null,null,28,null,null,null,null,null,null,-2,null,14,60,null,null,null,null,null,null,null,93]
[36,410510068,6222016100688,"فرشة بالجاروف توأم الهلال","Helal","فرشة بالجاروف","قطعة",{"$f":"16/1.14","v":14.035087719298247},{"$f":"H40+(H40*14%)","v":16},{"$f":"I40-(I40*12%)","v":14.08},17.600000000000001,{"$f":"I40-(I40*7%)","v":14.879999999999999},17.600000000000001,17.600000000000001,17.600000000000001,null,null,null,null,null,null,12,36,null,null,null,null,null,null,null,null,null,null,12,null,null,12,null,12,null,null,null,null,null,null,null,null,6,null,null,null,null,null,18,null,null,12,12,null,null,null,null,null,null,null,null,null,null,96,12,null,null,null,null,null,null,null,null,null,null,null,null,null,null,null,null,12,null,null,null,6,null,null,null,null,null,null,null,null,null,null,null,null,null,null,5,null,null,null,null,null,null,null,null,null,null,null,null,18,null,null,null,null,null,null,null,null,null,null,null,null,null,null,null,null,null,null,null,null,null,null,null,null,null,null,null,18,null,null,null,null,null,null,null,null,null,null,6,null,null,null,null,12,null,null,null,null,null,null,null,null,null,18,9,null,null,null,null,null,null,null,null,null,null,240]
[37,410513513,6222016135130,"فرشة بالجاروف دولفين الهلال","Helal","فرشة بالجاروف","قطعة",16.666666666666668,{"$f":"H41+(H41*14%)","v":19},{"$f":"I41-(I41*12%)","v":16.72},20.9,{"$f":"I41-(I41*7%)","v":17.670000000000002},20.9,20.9,20.9,null,null,null,null,null,null,10,null,null,null,null,null,null,null,null,null,null,null,null,null,null,null,null,null,null,null,null,null,null,null,null,null,null,null,null,null,null,null,null,null,null,null,null,null,null,null,null,null,null,null,null,null,null,null,null,null,null,null,null,null,null,null,null,null,null,null,null,null,null,null,null,null,null,null,null,null,null,null,null,null,null,null,null,null,null,null,null,null,null,null,null,null,null,null,null,null,null,null,null,null,null,null,null,null,null,null,null,null,null,null,null,null,null,null,null,null,null,null,null,null,null,null,null,null,null,null,null,null,null,null,null,null,null,null,null,null,null,null,null,null,null,null,null,null,null,null,null,null,null,null,null,null,null,null,null,null,null,null,null,null,null,null,null,null,null,null,null,null,null,10]
[38,410510099,6222016100992,"فرشة بالجاروف كف الهلال","Helal","فرشة بالجاروف","قطعة",{"$f":"13/1.14","v":11.403508771929825},{"$f":"H42+(H42*14%)","v":13.000000000000002},{"$f":"I42-(I42*12%)","v":11.440000000000001},14.3,{"$f":"I42-(I42*7%)","v":12.090000000000002},14.3,14.3,14.3,null,null,null,null,null,null,null,null,null,null,null,null,null,null,null,null,null,null,null,null,null,null,null,null,null,null,null,null,null,null,null,null,null,null,null,null,null,null,null,1,null,null,null,null,null,null,null,null,null,null,null,null,null,null,null,null,null,null,null,null,null,null,null,null,null,null,null,null,null,null,null,18,null,null,null,null,null,null,null,6,null,11,null,null,null,null,null,null,null,null,null,null,null,null,null,null,null,null,null,null,null,null,null,null,null,null,null,null,null,null,null,null,null,null,null,null,null,null,null,null,null,null,null,null,null,null,null,null,null,null,null,null,null,null,null,null,null,null,null,null,null,null,null,null,null,null,null,null,null,null,null,null,null,null,null,null,null,null,null,null,null,null,null,null,null,null,null,null,null,1]
[39,410510239,null,"فرشة بالجاروف نوفا صغيره","Helal",null,"قطعة",null,null,null,17.6814,null,17.6814,17.6814,17.6814,null,null,null,null,null,null,null,null,null,null,null,null,null,null,null,null,null,12,12,null,null,null,null,null,null,null,null,null,null,null,null,null,null,null,null,null,null,null,null,null,null,null,null,null,null,null,null,null,null,null,null,null,null,null,null,null,null,null,null,null,null,null,null,null,null,null,null,null,null,null,null,null,null,null,null,null,null,null,null,null,null,null,null,null,null,null,null,null,null,null,null,null,null,null,null,null,null,null,null,null,null,null,null,null,null,null,null,null,null,null,null,null,null,null,null,null,null,null,null,null,null,null,null,null,null,null,null,null,null,null,null,null,null,null,null,null,null,null,null,null,null,null,null,null,null,null,null,6,null,null,null,null,null,null,null,null,null,null,null,null,null,null,null,null,null,null,null,null,null,24]
[40,410810090,6222016100909,"فرشة بلاط باليد الهلال","Helal","فرشة بلاط","قطعة",11.913999999999998,{"$f":"H44+(H44*14%)","v":13.581959999999999},{"$f":"I44-(I44*12%)","v":11.952124799999998},14.94,{"$f":"I44-(I44*7%)","v":12.631222799999998},14.94,14.94,14.94,null,null,null,null,null,null,null,null,null,null,null,null,null,null,null,null,null,null,null,null,null,null,null,null,null,null,null,null,null,null,null,null,null,null,null,null,null,null,null,null,null,null,null,null,null,null,null,null,null,null,null,null,null,null,null,null,null,null,null,null,null,null,null,null,null,null,null,null,null,null,null,null,null,null,null,null,null,null,null,null,null,null,6,null,null,null,null,null,null,null,null,null,null,null,null,24,null,null,null,null,null,null,null,null,null,null,null,null,null,null,null,null,null,null,null,null,null,null,null,null,null,null,null,null,null,null,null,null,null,null,null,null,null,null,null,null,null,null,6,null,null,null,null,null,null,null,12,null,null,null,null,null,null,null,null,null,null,null,null,null,null,null,null,null,null,null,null,null,null,0,null,null,null,null,null,null,null,null,{"$f":"GG44*M44","v":0}]
[41,410812302,6222016123021,"فرشة بلاط باليد براندو الهلال","Helal","فرشة بلاط","قطعة",{"$f":"16/1.14","v":14.035087719298247},{"$f":"H45+(H45*14%)","v":16},{"$f":"I45-(I45*12%)","v":14.08},17.600000000000001,{"$f":"I45-(I45*7%)","v":14.879999999999999},17.600000000000001,17.600000000000001,17.600000000000001,null,null,null,null,null,null,null,null,null,null,null,null,null,null,null,null,null,null,null,null,null,null,null,null,null,null,null,null,null,null,null,null,null,null,null,null,null,null,null,null,null,null,null,null,null,null,null,null,null,null,null,null,null,null,null,null,null,null,null,null,null,null,null,null,null,null,null,null,null,null,null,null,null,null,null,null,null,null,null,null,null,null,null,null,null,null,null,null,null,null,null,null,null,null,null,null,null,null,null,null,null,null,null,null,null,null,null,null,null,null,null,null,null,null,null,null,null,null,null,null,null,null,null,null,null,null,null,null,null,null,null,null,null,null,null,null,null,null,null,null,null,null,null,null,null,null,null,null,null,null,null,null,null,null,null,null,null,null,null,null,null,null,null,null,null,null,null,null,null,0]
[42,410812303,null,"فرشة بلاط باليد نوفا","Helal",null,"قطعة",null,null,null,20.896199999999997,null,20.896199999999997,20.896199999999997,20.896199999999997,null,null,null,null,null,null,null,null,null,null,12,null,null,null,null,null,null,null,12,null,null,null,null,null,null,null,null,null,null,null,null,null,null,null,null,null,null,null,null,null,null,null,null,null,null,null,null,null,null,null,null,null,12,null,null,null,null,null,null,null,null,null,null,null,null,null,null,null,null,null,null,null,null,null,null,null,null,null,null,null,null,null,null,null,null,null,null,null,null,null,null,24,null,null,null,null,null,null,null,null,null,null,null,null,null,null,null,null,null,null,null,null,null,null,null,null,null,null,null,null,null,null,null,null,null,null,null,null,null,null,null,null,null,null,null,null,null,null,null,null,null,null,null,null,null,null,null,null,null,null,null,null,null,null,null,null,null,null,null,null,null,null,null,null,null,null,null,null,null,36]
[43,410810126,null,"فرشة بلاط مكواة هلال","Helal",null,"قطعة",null,null,null,12.6,null,12.6,12.6,12.6,null,null,null,null,null,null,null,null,null,null,null,null,null,null,null,null,null,null,null,null,null,null,null,null,null,null,null,null,null,null,null,null,null,null,null,null,null,null,null,null,null,null,null,null,null,null,null,null,null,null,null,null,null,null,null,null,null,null,null,null,null,null,null,null,null,null,null,null,null,null,null,null,null,null,null,null,null,null,null,null,null,null,null,null,null,null,null,null,null,null,null,null,null,null,null,null,null,null,null,null,null,null,null,null,null,null,null,null,null,null,null,null,null,null,null,null,null,null,null,null,null,null,null,null,null,null,null,null,null,null,null,null,null,null,null,null,null,null,null,null,null,null,null,null,null,null,null,null,null,null,null,null,null,null,null,null,null,null,null,null,null,null,null,null,null,null,null,null,null,0]
[44,410910088,6222016100886,"فرشة تواليت الهلال","Helal","فرش تواليت","قطعة",{"$f":"8/1.14","v":7.0175438596491233},{"$f":"H48+(H48*14%)","v":8},{"$f":"I48-(I48*12%)","v":7.04},8.8000000000000007,{"$f":"I48-(I48*7%)","v":7.4399999999999995},8.8000000000000007,8.8000000000000007,8.8000000000000007,null,null,null,null,null,12,null,null,null,null,null,24,null,null,null,null,null,null,null,null,null,null,12,null,null,null,null,null,null,null,null,null,null,null,null,12,null,null,null,null,null,null,null,null,null,null,null,12,null,null,null,null,null,null,null,12,null,null,null,null,null,null,null,null,null,null,null,null,null,null,null,12,48,12,null,null,null,null,null,null,null,null,null,null,null,null,null,null,null,null,null,null,null,null,null,null,12,null,null,null,null,null,null,null,null,null,null,null,null,null,null,48,null,null,null,null,null,null,null,null,null,null,null,null,null,null,null,null,null,null,null,null,null,null,null,null,null,null,null,null,null,null,null,null,null,null,null,null,null,null,null,null,null,null,null,null,null,null,null,null,null,null,null,null,null,null,null,null,null,84,null,null,null,null,{"$f":"BS48*N48","v":105.60000000000001}]
[45,410910177,6222016101777,"فرشة تواليت الهلال بالقاعدة بدون كاوتشة","Helal","فرش تواليت","قطعة",16.666666666666668,{"$f":"H49+(H49*14%)","v":19},{"$f":"I49-(I49*12%)","v":16.72},20.9,17.670000000000002,20.9,20.9,20.9,null,null,null,null,null,null,null,null,null,null,null,null,null,null,null,null,null,null,null,null,null,null,null,null,null,null,null,null,null,null,null,null,null,null,null,null,null,null,null,null,null,null,null,null,null,null,null,null,null,null,null,null,null,null,null,null,null,null,null,null,null,null,null,null,null,null,null,null,null,null,null,6,null,null,null,null,null,null,null,null,null,null,null,null,null,null,null,null,null,null,null,null,null,null,null,null,null,null,null,null,null,null,null,null,null,null,null,null,null,null,null,null,null,null,null,null,null,null,null,null,null,null,null,null,null,null,null,null,null,null,null,null,null,null,null,null,null,null,null,null,null,null,null,null,null,null,null,null,null,null,null,null,null,null,null,null,null,null,null,null,null,null,null,null,null,null,null,null,null,0]
[46,410912202,6222016122024,"فرشة تواليت بالقاعدة باريس","Helal","فرش تواليت","قطعة",13.157894736842106,{"$f":"H50+(H50*14%)","v":15.000000000000002},{"$f":"I50-(I50*12%)","v":13.200000000000001},16.5,13.950000000000001,16.5,16.5,16.5,null,null,null,null,null,null,null,null,null,null,null,null,null,null,null,null,null,null,null,null,null,null,6,null,null,null,null,6,null,null,null,6,null,null,null,null,null,null,null,null,null,null,null,null,null,null,null,null,null,null,null,null,null,null,null,null,null,null,null,null,null,null,null,null,null,null,null,null,36,null,null,4,null,null,null,null,null,null,null,3,null,null,6,null,null,null,null,null,null,null,null,null,null,null,null,null,null,null,null,null,null,null,null,3,null,18,null,null,null,null,null,null,null,null,null,null,null,null,null,null,null,18,null,18,null,null,null,null,null,null,null,null,null,18,null,null,null,null,null,null,null,null,null,null,null,null,null,null,null,null,null,null,null,null,null,null,null,null,null,null,null,null,null,null,null,null,null,null,null,18,null,null,null,null,null,null,null,null,null,null,{"$f":"AU50*N50","v":99}]
[47,410910326,null,"فرشة تواليت بالقاعدة نوفا ","Helal",null,"قطعة",null,null,null,27.4968,0,27.4968,27.4968,27.4968,null,null,null,null,null,null,null,null,null,null,null,null,null,null,null,null,null,null,null,null,null,null,null,null,null,null,null,null,null,null,null,null,null,null,null,null,null,null,null,null,null,null,null,null,null,null,null,null,null,null,null,null,null,null,null,null,null,null,null,null,null,null,null,null,null,null,null,null,null,null,null,6,null,null,null,null,null,null,null,null,null,null,null,null,null,null,null,null,null,null,null,null,null,null,null,null,null,null,null,null,null,null,null,null,null,null,null,null,null,null,null,null,null,null,null,null,null,null,null,null,null,null,null,null,null,null,null,null,null,null,null,null,null,null,null,null,null,null,null,null,null,null,null,null,null,null,null,null,null,null,null,null,null,null,null,null,null,null,null,null,null,null,null,null,null,null,null,null,null,0]
[48,410910118,null,"فرشة تواليت بالقاعدة نوفا بدون كاوتشه","Helal",null,"قطعة",null,null,null,27.4968,0,27.4968,27.4968,27.4968,null,null,null,null,null,null,null,null,null,null,null,null,null,null,null,null,null,null,null,null,null,null,null,null,null,null,null,null,null,null,null,null,null,null,null,null,null,null,null,null,null,null,null,null,null,null,null,null,null,null,null,null,null,null,null,null,null,null,null,null,null,null,null,null,null,null,null,null,null,null,null,null,null,null,null,null,null,null,null,null,null,null,null,null,null,null,null,null,null,null,null,null,null,null,null,null,null,null,null,null,null,null,null,null,null,null,null,null,null,null,null,null,null,null,null,null,null,null,null,null,null,null,null,null,null,null,null,null,null,null,null,null,null,null,null,null,null,null,null,null,null,null,null,null,null,null,null,null,null,null,null,null,null,null,null,null,null,null,null,null,null,null,null,null,null,null,null,null,null,0]
[49,410910141,6222016101418,"فرشة تواليت بامبو الهلال  بالقاعدة","Helal","فرش تواليت","قطعة",16.666666666666668,{"$f":"H53+(H53*14%)","v":19},{"$f":"I53-(I53*12%)","v":16.72},20.9,17.670000000000002,20.9,20.9,20.9,null,null,null,null,null,null,null,null,null,null,null,null,null,null,null,null,null,null,null,null,null,null,null,null,null,null,null,6,null,null,null,null,null,null,null,null,null,null,null,null,null,null,null,null,null,null,null,null,null,null,null,null,null,null,null,null,null,null,null,null,null,null,null,null,null,null,null,null,null,null,null,null,null,null,null,null,null,null,null,null,null,null,null,null,null,null,null,null,null,null,null,null,null,null,null,null,null,null,null,null,null,null,null,null,null,null,null,null,null,null,null,null,null,null,null,null,null,null,null,null,null,null,null,null,null,null,null,null,null,null,null,null,null,null,null,null,null,null,null,null,null,null,null,null,null,null,null,null,null,null,null,null,null,null,null,null,null,null,null,null,null,null,null,null,null,null,null,null,null,6]
[50,410114310,null,"فرشة جندولا","Helal","فرش و مكانس","قطعة",null,null,null,15.19,0,15.19,15.19,15.19,null,null,null,null,null,null,null,null,null,null,null,null,null,null,null,null,null,null,null,null,null,null,null,null,null,null,null,null,null,null,null,null,null,null,null,null,null,null,null,null,null,null,null,null,null,null,null,null,null,null,null,null,null,null,null,null,null,null,null,null,null,null,null,null,null,null,null,null,null,null,null,null,null,null,null,null,null,null,null,null,null,null,null,null,null,null,null,null,null,null,null,null,null,null,null,null,null,null,null,null,null,null,null,null,null,null,null,null,null,null,null,null,null,null,null,null,null,null,null,null,null,null,null,null,null,null,null,null,null,null,null,null,null,null,null,null,null,null,null,null,null,null,null,null,null,null,null,null,null,null,null,null,null,null,null,null,null,null,null,null,null,null,null,null,null,null,null,null,null,0]
[51,410114000,6222016140004,"فرشة دهب باليد المعدن","Helal","فرش و مكانس","قطعة",51.754385964912288,{"$f":"H55+(H55*14%)","v":59.000000000000007},{"$f":"I55-(I55*12%)","v":51.920000000000009},64.900000000000006,54.870000000000005,64.900000000000006,64.900000000000006,64.900000000000006,null,null,null,null,null,null,null,null,null,null,null,null,null,null,null,null,null,null,null,null,null,null,null,null,null,null,null,null,null,null,null,null,null,null,null,null,null,null,null,null,null,null,null,null,null,null,null,null,null,null,null,null,null,null,null,null,null,null,null,null,null,null,null,null,null,null,null,null,null,null,null,null,null,null,null,null,null,null,null,null,null,null,null,null,null,null,null,null,null,null,null,null,null,null,null,null,null,null,null,null,null,null,null,null,null,null,null,null,null,null,null,null,null,null,null,null,null,null,null,null,null,null,null,null,null,null,null,null,null,null,null,null,null,null,null,null,null,null,null,null,null,null,null,null,null,null,null,null,null,null,null,null,null,null,null,null,null,null,null,null,null,null,null,null,null,null,null,null,null,0]
[52,410110107,6222016101074,"فرشة روما لوكس","Helal","فرش و مكانس","قطعة",11.304033279073975,{"$f":"H56+(H56*14%)","v":12.886597938144332},{"$f":"I56-(I56*12%)","v":11.340206185567013},14.61,11.984536082474229,14.61,16.07,16.07,null,null,null,null,null,12,null,null,12,null,null,12,null,null,null,null,null,null,null,null,24,12,12,12,636,null,36,null,null,null,12,null,null,null,null,12,null,24,null,24,null,null,null,null,null,null,null,null,null,null,null,null,null,null,null,3,null,null,null,null,null,null,null,null,null,null,null,null,null,null,24,6,null,null,null,12,null,null,null,null,null,null,12,null,null,null,null,24,null,12,null,null,null,null,null,null,12,null,null,null,36,null,null,null,null,null,null,12,24,null,636,null,null,null,18,null,null,18,null,null,null,null,null,null,null,null,null,null,null,null,12,18,18,null,null,null,null,null,null,18,null,null,null,null,null,24,12,null,18,18,null,null,null,null,18,18,18,null,null,null,null,null,null,null,null,null,null,null,null,843,null,null,null,null,{"$f":"BS56*N56","v":48.21},null,null,null,null,null,null,null,14.1,{"$f":"GP56*1.14","v":16.073999999999998}]
[53,515701011,null,"فرشة ستايل766","Helal","فرش متنوعة","قطعة",null,null,null,27.5,0,27.5,27.5,27.5,null,null,null,null,null,null,null,null,null,null,null,null,null,null,null,null,null,null,null,null,null,null,null,null,null,null,null,null,null,null,null,12,null,null,null,null,null,null,null,null,null,null,null,null,null,null,null,null,null,null,null,null,null,null,null,null,null,null,12,null,null,null,null,null,null,null,null,null,null,null,null,null,null,null,null,null,null,null,null,null,null,null,null,null,null,null,null,null,null,null,null,null,null,null,null,null,null,null,null,null,null,null,null,null,null,null,null,null,null,null,null,null,null,null,null,null,null,null,null,null,null,null,null,null,null,null,12,null,null,null,null,null,null,null,null,null,null,null,null,null,null,null,null,null,null,null,null,null,null,null,null,null,null,null,null,null,null,null,null,null,null,null,null,null,null,null,null,null,null,24,null,null,null,null,null,null,null,null,null,null,{"$f":"AU57*N57","v":330}]
[54,410810089,6222016100893,"فرشة سجاد الهلال","Helal","فرشة سجاد","قطعة",{"$f":"9/1.14","v":7.8947368421052637},{"$f":"H58+(H58*14%)","v":9},{"$f":"I58-(I58*12%)","v":7.92},9.9,8.3699999999999992,9.9,9.9,9.9,null,null,null,null,null,null,null,null,null,null,null,null,null,null,null,null,null,null,null,null,null,null,null,null,null,null,null,null,null,null,null,null,null,null,18,null,null,null,null,null,null,null,null,null,null,72,null,null,null,null,null,null,null,null,null,null,null,null,null,null,null,null,null,null,null,null,null,null,null,null,null,null,null,null,null,null,null,null,null,null,null,null,null,null,null,null,null,null,null,null,null,null,null,null,null,null,null,null,null,null,null,null,null,null,null,null,null,null,null,null,null,null,null,null,null,null,null,null,null,null,null,null,null,null,null,null,null,18,null,null,null,null,null,null,null,null,null,null,null,null,null,null,null,null,null,null,null,null,null,null,null,null,null,null,null,null,null,null,null,null,null,null,null,null,null,null,null,null,null,90]
[55,410810186,null,"فرشة سجاد وموكيت نوفا","Helal",null,"قطعة",null,null,null,13.201199999999998,0,13.201199999999998,13.201199999999998,13.201199999999998,null,null,null,null,null,null,null,null,null,null,null,null,null,null,null,null,null,null,null,null,null,null,null,null,null,null,null,null,null,null,null,null,null,null,null,null,null,null,null,null,null,null,null,null,null,null,null,null,null,null,null,null,null,null,null,null,null,null,null,null,null,null,null,null,null,null,null,null,null,null,null,null,null,12,null,null,null,null,null,null,null,null,null,null,null,null,null,null,null,null,null,null,null,null,null,null,null,null,null,null,null,null,null,null,null,null,null,null,null,null,null,null,null,null,null,null,null,null,null,null,null,null,null,null,null,null,null,null,null,null,null,null,null,null,null,null,null,null,null,null,null,null,null,null,null,null,null,null,null,null,null,null,null,null,null,null,null,null,null,null,null,null,null,null,null,null,null,null,null,0]
[56,410110064,6222016100640,"فرشة سوبر هلين خشن","Helal","فرش و مكانس","قطعة",15.731446313377948,{"$f":"H60+(H60*14%)","v":17.93384879725086},{"$f":"I60-(I60*12%)","v":15.781786941580757},23.74,null,23.74,23.74,23.74,null,null,null,null,null,null,null,null,null,null,null,null,null,null,null,null,null,null,null,null,12,null,null,null,null,null,null,null,null,null,null,null,null,null,null,null,null,null,null,null,null,null,null,null,null,null,null,null,null,null,null,null,null,null,null,null,12,null,null,null,null,null,null,null,null,null,null,null,null,null,null,null,null,null,null,null,null,null,null,null,null,null,null,null,null,null,null,null,null,null,null,null,null,null,null,null,null,null,null,null,null,null,null,null,null,null,12,null,null,null,null,null,null,null,null,null,null,null,null,null,null,null,null,null,null,null,null,null,null,null,null,null,null,null,null,null,null,null,null,null,null,null,null,null,null,null,null,null,null,null,null,null,null,null,null,null,null,null,null,null,null,null,null,null,null,null,null,null,null,24]
[57,410110062,6222016100626,"فرشة سوبر هلين ناعم","Helal","فرش و مكانس","قطعة",15.731446313377948,{"$f":"H61+(H61*14%)","v":17.93384879725086},{"$f":"I61-(I61*12%)","v":15.781786941580757},24.15,{"$f":"I61-(I61*7%)","v":16.678479381443299},24.15,24.15,24.15,null,null,null,null,null,null,null,null,null,null,null,null,null,null,null,null,null,null,null,null,null,null,null,null,null,null,null,null,null,null,null,null,null,null,null,null,null,null,null,null,null,null,null,null,null,null,null,null,null,null,null,null,null,null,null,null,null,null,null,null,null,null,null,null,null,null,null,null,null,null,null,null,null,null,null,null,null,null,null,null,null,null,null,null,null,null,null,null,null,null,null,null,null,null,null,null,null,null,null,null,null,null,null,null,null,null,null,null,null,null,null,null,null,null,null,null,null,null,null,null,null,null,null,null,null,null,null,null,null,null,null,null,null,null,null,null,null,null,null,null,null,null,null,null,null,null,null,null,null,null,null,null,null,null,null,null,null,null,null,null,null,null,null,null,null,null,null,null,null,0]
[58,410114002,6222016140028,"فرشة سيارات الهلال","Helal","فرش متنوعة","قطعة",17.726779460366004,{"$f":"H62+(H62*14%)","v":20.208528584817245},{"$f":"I62-(I62*12%)","v":17.783505154639176},22.23,18.793931583880038,22.23,22.23,22.23,null,null,null,null,null,null,null,null,null,null,null,null,null,null,null,null,null,null,null,null,null,null,null,null,null,null,null,null,null,null,null,null,null,null,null,null,null,null,null,null,null,null,null,null,null,null,null,null,null,null,null,null,null,null,null,null,null,null,null,null,null,null,null,null,null,null,null,null,null,null,null,null,null,null,null,null,null,null,null,null,null,null,null,null,null,null,null,null,null,null,null,null,null,null,null,null,null,null,null,null,null,null,null,null,null,null,null,null,null,null,null,null,null,null,null,null,null,null,null,null,null,null,null,null,null,null,null,null,12,null,null,null,null,null,null,null,null,null,null,null,null,null,null,null,null,null,null,null,null,null,null,null,null,null,null,null,null,null,null,null,null,null,null,null,null,null,null,null,null,0]
[59,410310069,null,"فرشة شباك طويله","Helal","فرش و مكانس","قطعة",null,null,null,11.28,0,11.28,12.51,12.51,null,null,null,null,null,null,null,null,null,null,null,null,null,null,null,null,null,null,null,null,null,null,null,null,null,null,null,null,null,null,null,null,null,null,null,null,null,null,null,null,null,null,null,null,null,null,null,null,null,null,null,null,null,null,null,null,null,null,null,null,null,null,null,null,null,null,null,null,null,null,null,null,null,null,null,null,null,null,null,null,null,null,null,null,null,null,null,null,null,null,null,null,null,null,null,null,null,null,null,null,null,null,null,null,null,null,null,null,null,null,null,null,null,null,null,null,null,null,24,null,null,null,null,null,24,null,null,null,null,null,null,null,null,null,null,null,24,null,null,null,null,null,6,6,6,null,null,null,null,24,null,null,null,null,null,null,18,null,6,null,null,null,null,null,6,null,12,null,null,0]
[60,410210133,6222016101333,"فرشة طرق وملاعب  30 سم جلبة بلاستيك","Helal","فرش و مكانس","قطعة",36.930790542429179,{"$f":"H64+(H64*14%)","v":42.101101218369266},{"$f":"I64-(I64*12%)","v":37.048969072164951},46.31,39.154024133083418,46.31,46.31,46.31,null,null,null,null,null,null,null,null,null,null,null,null,null,null,null,null,null,null,null,null,null,null,null,null,null,null,null,null,null,null,null,null,null,null,null,null,null,null,null,null,null,null,null,null,null,null,null,null,null,null,null,null,null,null,null,null,null,null,null,null,null,null,null,null,null,null,null,null,null,null,null,null,null,null,null,null,null,null,null,null,null,null,null,null,null,null,null,null,null,null,null,null,null,null,null,null,null,null,null,null,null,null,null,null,null,null,null,null,null,null,null,null,null,null,null,null,null,null,null,null,null,null,null,null,null,null,null,null,null,null,null,null,null,null,null,null,null,null,null,null,null,null,null,null,null,null,null,null,null,null,null,null,null,null,null,null,null,null,null,null,null,null,null,null,null,null,null,null,null,0]
[61,410210122,6222016101227,"فرشة طرق وملاعب  30 سم جلبة حديد","Helal","فرش و مكانس","قطعة",45.203287623933306,51.53174789128397,45.347938144329895,56.68,47.924525538894095,56.68,56.68,56.68,null,null,null,null,null,null,null,null,null,null,null,null,null,null,null,null,null,null,null,null,null,null,null,null,null,null,null,null,null,null,null,null,null,null,null,null,null,null,null,null,null,null,null,null,null,null,null,null,null,null,null,null,null,null,null,null,null,null,null,null,null,null,null,null,null,null,null,null,null,null,null,null,null,null,null,null,null,null,null,null,null,null,null,null,null,null,null,null,null,null,null,null,null,null,null,null,null,null,null,null,null,null,null,null,null,null,null,null,null,null,null,null,null,null,null,null,null,null,null,null,null,null,null,null,null,null,null,null,null,null,null,null,null,null,null,null,null,null,null,null,null,null,null,null,null,null,null,null,null,null,null,null,null,null,null,null,null,null,null,null,null,null,null,null,null,null,null,null,null,0]
[62,410210123,6222016101234,"فرشة طرق وملاعب  40 سم جلبة حديد","Helal","فرش و مكانس","قطعة",55.051498435247758,62.758708216182448,55.227663230240552,63.25,58.365598641049679,63.25,63.25,63.25,null,null,null,null,null,null,null,null,null,null,null,null,null,null,null,null,null,null,null,null,null,null,null,null,null,null,null,null,null,null,null,null,null,null,null,null,null,null,null,null,null,null,null,null,null,null,null,null,null,null,null,null,null,null,null,null,null,null,null,null,null,null,null,null,null,null,null,null,null,null,null,null,null,null,null,null,null,null,null,null,null,null,null,null,null,null,null,null,null,null,null,null,null,null,null,null,null,null,null,null,null,null,null,null,null,null,null,null,null,null,null,null,null,null,null,null,null,null,null,null,null,null,null,null,null,null,null,null,null,null,null,null,null,null,null,null,null,null,null,null,null,null,null,null,null,null,null,null,null,null,null,null,null,null,null,null,null,null,null,null,null,null,null,null,null,null,null,null,null,0]
[63,410210124,6222016101241,"فرشة طرق وملاعب  60 سم جلبة حديد","Helal","فرش و مكانس","قطعة",78.687204382402413,89.703412995938749,78.939003436426106,98.67,83.424174086223033,98.67,98.67,98.67,null,null,null,null,null,null,null,null,null,null,null,null,null,null,null,null,null,null,null,null,null,null,null,null,null,null,null,null,null,null,null,null,null,null,null,null,null,null,null,null,null,null,null,null,null,null,null,null,null,null,null,null,null,null,null,null,null,null,null,null,null,null,null,null,null,null,null,null,null,null,null,null,null,null,null,null,null,null,null,null,null,null,null,null,null,null,null,null,null,null,null,null,null,null,null,null,null,null,null,null,null,null,null,null,null,null,null,null,null,null,null,null,null,null,null,null,null,null,null,null,null,null,null,null,null,null,null,null,null,null,null,null,null,null,null,null,null,null,null,null,null,null,null,null,null,null,null,null,null,null,null,null,null,null,null,null,null,null,null,null,null,null,null,null,null,null,null,null,null,0]
[64,410210132,6222016101326,"فرشة طرق وملاعب خشب 60 سم بدون جلبة","Helal","فرش و مكانس","قطعة",55.051498435247758,62.758708216182448,55.227663230240552,69.03,58.365598641049679,69.03,69.03,69.03,null,null,null,null,null,null,null,null,null,null,null,null,null,null,null,null,null,null,null,null,null,null,null,null,null,null,null,null,null,null,null,null,null,null,null,null,null,null,null,null,null,null,null,null,null,null,null,null,null,null,null,null,null,null,null,null,null,null,null,null,null,null,null,null,null,null,null,null,null,null,null,null,null,null,null,null,null,null,null,null,null,null,null,null,null,null,null,null,null,null,null,null,null,null,null,null,null,null,null,null,null,null,null,null,null,null,null,null,null,null,null,null,null,null,null,null,null,null,null,null,null,null,null,null,null,null,null,null,null,null,null,null,null,null,null,null,null,null,null,null,null,null,null,null,null,null,null,null,null,null,null,null,null,null,null,null,null,null,null,null,null,null,null,null,null,null,null,null,null,0]
[65,410114001,6222016140011,"فرشة فضة ناعمة باليد المعدن","Helal","فرش و مكانس","قطعة",51.754385964912288,59.000000000000007,51.920000000000009,64.900000000000006,null,64.900000000000006,64.900000000000006,64.900000000000006,null,null,null,null,null,null,null,null,null,null,null,null,null,null,null,null,null,null,null,null,null,null,null,null,null,null,null,null,null,null,null,null,null,null,null,null,null,null,null,null,null,null,null,null,null,null,null,null,null,null,null,null,null,null,null,null,null,null,null,null,null,null,null,null,null,null,null,null,null,null,null,null,null,null,null,null,null,null,null,null,null,null,null,null,null,null,null,null,null,null,null,null,null,null,null,null,null,null,null,null,null,null,null,null,null,null,null,null,null,null,null,null,null,null,null,null,null,null,null,null,null,null,null,null,null,null,null,null,null,null,null,null,null,null,null,null,null,null,null,null,null,null,null,null,null,null,null,null,null,null,null,null,null,null,null,null,null,null,null,null,null,null,null,null,null,null,null,null,null,0]
[66,518101001,null,"فرشة فلاشو بدون","Helal",null,"قطعة",null,null,null,17.670000000000002,{"$f":"I70-(I70*7%)","v":0},17.670000000000002,17.670000000000002,17.670000000000002,null,null,null,null,null,null,null,null,null,null,null,null,null,null,null,null,null,null,null,null,null,null,null,null,null,null,null,null,null,null,null,null,null,null,null,null,null,null,null,null,null,null,null,null,null,null,null,null,null,null,null,null,null,null,null,null,null,null,null,null,null,null,null,null,null,null,null,null,null,null,null,null,null,null,null,null,null,null,null,null,null,null,null,null,null,null,null,null,null,null,null,null,null,null,null,null,null,null,null,null,null,null,null,null,null,null,null,null,null,null,null,null,null,null,null,null,null,null,null,null,null,null,null,null,null,null,null,null,null,null,null,null,null,null,null,null,null,null,null,null,null,null,null,null,null,null,null,null,null,null,null,null,null,null,null,null,null,null,null,null,null,null,null,null,null,null,null,null,null,0]
[67,410110104,6222016101043,"فرشة لوكس الهلال","Helal","فرش و مكانس","قطعة",14,{"$f":"H71+(H71*14%)","v":15.96},{"$f":"I71-(I71*12%)","v":14.0448},23.47,null,23.47,23.47,23.47,null,null,null,null,null,null,null,null,null,null,null,null,null,null,null,null,null,null,null,null,null,null,null,null,null,null,null,null,null,null,null,null,null,null,null,null,null,null,null,null,null,null,null,null,null,null,null,null,null,null,null,null,null,null,null,null,null,null,null,null,null,null,null,null,null,null,null,null,null,null,null,null,null,null,null,null,null,null,null,null,null,null,null,null,null,null,null,null,null,null,null,null,null,null,null,null,null,null,null,null,null,null,null,null,null,null,null,null,null,null,null,null,null,null,null,null,null,null,null,null,null,null,null,null,null,null,null,null,null,null,null,null,null,null,null,null,null,null,null,null,null,null,null,null,null,null,null,null,null,null,null,null,null,null,null,null,null,null,null,null,null,null,null,null,null,null,null,null,null,0]
[68,410310482,null,"فرشة لؤلؤ","Helal",null,"قطعة",null,null,null,13.08,{"$f":"I72-(I72*7%)","v":0},13.08,13.08,13.08,null,null,null,null,null,null,null,null,null,null,null,null,null,null,null,null,null,null,null,null,null,null,null,null,null,null,null,null,null,null,null,null,null,null,null,null,null,null,null,null,null,null,null,null,null,null,null,null,null,null,null,null,null,null,null,null,null,null,null,null,null,null,null,null,null,null,null,null,null,null,null,null,null,null,null,null,null,null,null,null,null,null,null,null,null,null,null,null,null,null,null,null,null,null,null,null,null,null,null,null,null,null,null,null,null,null,null,null,null,null,null,null,null,null,null,null,null,null,null,null,null,null,null,null,null,null,null,null,null,null,null,null,null,null,null,null,null,null,null,null,null,null,null,null,null,null,null,null,null,null,null,null,null,null,null,null,null,null,null,null,null,null,null,null,null,null,null,null,null,0]
[69,410118004,6222016180048,"فرشة مدريد ناعم بيد معدن مدهون","Helal","فرش و مكانس","قطعة",25.438596491228072,{"$f":"H73+(H73*14%)","v":29.000000000000004},{"$f":"I73-(I73*12%)","v":25.520000000000003},31.9,null,31.9,31.9,31.9,null,null,null,null,null,null,null,null,null,null,null,null,null,null,null,null,null,null,null,null,null,null,null,null,null,null,null,null,null,null,null,null,null,null,null,null,null,null,null,null,null,null,null,null,null,null,null,null,null,null,null,null,null,null,null,null,null,null,null,null,null,null,null,null,null,null,null,null,null,null,null,null,null,null,null,null,null,null,null,null,null,null,null,null,null,null,null,null,null,null,null,null,null,null,null,null,null,null,null,null,null,null,null,null,null,null,null,null,null,null,null,null,null,null,null,null,null,null,null,null,null,null,null,null,null,null,null,null,null,null,null,null,null,null,null,null,null,null,null,null,null,null,null,null,null,null,null,null,null,null,null,null,null,null,null,null,null,null,null,null,null,null,null,null,null,null,null,null,null,0]
[70,410810108,6222016101081,"فرشة مكواة الهلال","Helal","فرشة مكواة","قطعة",{"$f":"9/1.14","v":7.8947368421052637},{"$f":"H74+(H74*14%)","v":9},{"$f":"I74-(I74*12%)","v":7.92},9.9,null,9.9,9.9,9.9,null,null,null,null,null,null,null,null,null,null,null,null,null,null,null,null,null,null,null,null,null,null,null,null,null,null,null,null,null,null,null,null,null,null,null,null,null,null,null,null,null,null,12,null,null,null,null,null,null,null,null,null,null,null,null,null,null,null,null,null,null,null,null,null,null,null,null,null,null,null,null,null,null,null,null,null,null,null,null,null,null,null,null,null,null,null,null,null,null,null,12,null,null,null,null,null,null,null,null,null,null,null,null,null,null,null,null,null,null,null,null,null,null,null,null,null,null,null,null,null,null,null,null,null,null,null,null,12,null,null,null,null,null,null,null,null,null,null,null,null,null,null,null,null,null,null,null,null,null,null,null,null,null,null,null,null,null,null,null,null,null,null,null,null,null,null,null,null,null,12]
[71,410810033,6222016100336,"فرشة مكواة ننيجا الهلال","Helal","فرشة مكواة","قطعة",10.526315789473685,{"$f":"H75+(H75*14%)","v":12},{"$f":"I75-(I75*12%)","v":10.56},13.2,{"$f":"I75-(I75*7%)","v":11.16},13.2,13.2,13.2,null,null,null,null,null,null,null,null,null,null,null,null,null,null,null,null,null,null,24,null,null,null,null,null,null,null,null,null,null,null,null,null,null,null,null,null,null,null,null,null,null,null,null,null,null,null,null,null,null,null,null,null,null,null,null,null,null,null,null,24,null,null,null,null,null,null,null,null,null,null,null,24,null,null,null,null,null,null,24,null,null,null,null,null,null,null,null,null,null,null,null,null,null,null,null,null,null,null,null,null,null,null,null,null,null,null,null,null,null,null,null,null,null,null,null,null,null,null,null,null,null,null,null,null,null,null,null,null,null,null,null,null,null,null,null,null,null,null,null,null,null,null,null,null,null,null,null,null,null,null,null,null,null,null,null,null,null,null,null,null,null,null,null,null,null,null,null,null,null,48]
[72,410810191,null,"فرشة مكواه نوفا","Helal",null,"قطعة",null,null,null,15.959999999999999,null,15.959999999999999,15.959999999999999,15.959999999999999,null,null,null,null,null,null,24,null,null,null,null,null,null,null,null,null,12,12,null,null,null,null,null,null,null,null,null,null,null,null,null,null,null,null,null,null,null,null,null,null,null,null,null,null,null,null,null,null,null,null,null,null,null,null,null,null,null,null,null,null,null,null,null,null,null,null,null,null,null,null,null,null,null,12,null,null,null,null,null,null,null,null,null,null,null,null,null,null,null,null,null,null,12,null,null,null,null,null,null,null,null,null,null,null,null,null,null,null,null,null,null,null,null,null,null,null,null,null,null,null,null,null,null,null,null,null,null,null,null,null,null,null,null,null,null,null,null,null,12,null,null,null,null,null,null,null,null,null,null,null,null,null,null,null,null,null,null,null,null,null,null,null,null,null,null,null,null,null,null,48]
[73,410310109,6222016101098,"فرشة ملابس الهلال","Helal","فرشة ملابس","قطعة",10.526315789473685,{"$f":"H77+(H77*14%)","v":12},{"$f":"I77-(I77*12%)","v":10.56},13.2,{"$f":"I77-(I77*7%)","v":11.16},13.2,13.2,13.2,null,null,null,null,null,null,null,null,null,null,null,null,null,null,null,null,null,null,null,null,null,null,null,6,null,null,null,null,null,null,null,null,null,null,null,null,null,null,null,null,null,null,null,null,null,null,null,null,null,null,null,null,null,null,null,null,12,null,null,null,null,null,null,null,null,null,null,null,null,null,null,18,null,null,null,null,null,null,null,null,null,null,null,null,null,null,null,null,null,null,null,null,null,null,null,null,null,null,null,null,null,24,null,null,null,null,null,null,null,null,null,null,null,null,null,null,null,null,null,null,null,null,null,null,null,null,null,null,null,null,null,null,null,null,null,null,null,null,null,null,null,null,null,null,null,null,null,null,null,null,null,null,null,null,null,null,null,null,null,null,null,null,null,null,6,6,null,null,null,18,null,null,null,null,null,null,null,null,null,null,null,null,11.58,{"$f":"GP77*1.14","v":13.201199999999998}]
[74,411619253,null,"فرشة ملابس نوفا","Helal",null,"قطعة",null,null,null,11.000999999999999,{"$f":"I78-(I78*7%)","v":0},11.000999999999999,11.000999999999999,11.000999999999999,null,null,null,null,null,null,null,null,null,null,12,null,null,12,null,null,null,null,null,null,null,null,null,null,null,null,null,null,null,null,null,null,null,null,null,null,null,null,null,null,null,null,null,null,null,null,null,null,null,null,null,null,null,null,null,null,null,null,null,null,null,null,null,null,null,null,null,null,null,null,null,null,null,12,null,null,null,null,null,null,null,null,null,null,null,null,null,null,null,null,null,null,12,null,null,null,null,null,null,null,null,null,null,null,null,null,null,null,null,null,null,null,null,null,null,null,null,null,null,null,null,null,null,null,null,12,null,null,null,null,null,null,null,null,null,null,null,null,null,null,null,null,null,null,null,null,null,null,null,null,null,null,null,12,null,null,null,null,null,null,null,null,null,null,null,null,null,null,null,24]
[75,410110058,6222016100589,"فرشة ميكس الهلال","Helal","فرش و مكانس","قطعة",15.731446313377948,{"$f":"H79+(H79*14%)","v":17.93384879725086},{"$f":"I79-(I79*12%)","v":15.781786941580757},19.73,{"$f":"I79-(I79*7%)","v":16.678479381443299},19.73,19.73,19.73,null,null,null,null,null,null,null,null,null,null,null,null,null,null,null,null,null,null,null,null,null,null,null,null,null,null,null,null,null,null,null,null,null,null,null,null,null,null,null,null,null,null,null,null,null,null,null,null,null,null,null,null,null,null,null,null,null,null,null,null,null,null,null,null,null,null,null,null,null,null,10,null,null,null,null,null,null,null,null,null,null,null,null,null,null,null,null,null,null,null,null,null,null,null,null,null,null,null,null,null,null,null,null,null,null,null,null,null,null,null,null,null,null,null,null,null,null,null,null,null,null,null,null,null,null,null,null,12,null,null,null,null,null,null,null,null,null,null,null,null,null,null,null,null,null,null,null,null,null,null,null,null,null,null,null,null,null,null,null,null,null,null,null,null,null,null,null,null,null,0]
[76,411619252,null,"فرشة نوفا كبيره خشنه","Helal",null,"قطعة",null,null,null,27.4968,{"$f":"I80-(I80*7%)","v":0},27.4968,27.4968,27.4968,null,null,null,null,null,null,null,null,null,null,null,null,null,null,null,null,null,null,null,null,null,null,null,12,null,null,null,null,null,12,null,null,null,null,null,null,null,null,null,null,null,null,null,null,null,null,null,null,null,null,null,null,null,null,null,null,null,null,null,null,null,null,null,null,null,null,null,null,null,null,null,12,null,null,null,null,null,null,null,null,null,null,null,null,null,null,null,null,null,null,null,null,null,12,null,null,null,null,null,null,null,null,null,null,null,null,null,null,null,null,null,null,null,null,null,null,null,null,null,null,null,null,null,null,null,null,null,null,null,null,null,null,null,null,null,12,null,null,null,null,null,null,null,null,null,null,12,null,null,null,null,null,null,null,null,null,null,null,null,null,null,null,null,null,null,null,null,null,null,24]
[77,411619251,null,"فرشة نوفا كبيره ناعمه","Helal",null,"قطعة",null,null,null,27.4968,null,27.4968,27.4968,27.4968,null,null,null,null,null,null,null,null,null,null,null,null,null,null,null,null,null,null,null,null,null,12,null,null,null,null,null,null,null,12,null,24,null,null,null,null,null,null,null,null,null,null,null,null,12,null,null,null,null,null,null,null,null,null,null,null,null,null,null,null,null,null,null,null,null,null,null,null,null,null,null,12,null,null,null,null,null,null,null,null,null,null,null,null,null,null,null,null,null,null,null,null,null,null,null,null,null,null,null,null,null,null,null,null,null,null,null,null,null,null,null,null,null,null,null,null,null,null,null,null,null,null,null,null,null,null,null,12,null,null,null,null,null,null,null,null,null,null,null,null,null,null,null,null,null,null,null,null,null,null,null,null,null,null,null,null,null,null,null,null,null,null,null,null,null,null,null,null,null,60,null,null,null,null,null,null,null,null,null,null,{"$f":"AU81*N81","v":659.92319999999995}]
[78,410110057,null,"فرشة نوفا ناعم بيد معدن 120سم مدهون","Helal",null,"قطعة",null,null,null,42.898200000000003,null,42.898200000000003,42.898200000000003,42.898200000000003,null,null,null,null,null,null,null,null,null,null,null,null,null,null,null,null,null,null,null,null,null,null,null,null,null,null,null,null,null,null,null,12,null,null,null,null,null,null,null,null,null,null,null,null,null,null,null,null,null,null,null,null,null,null,null,null,null,null,null,null,null,null,null,null,null,null,null,null,null,null,null,12,null,null,null,null,null,null,null,null,null,null,null,null,null,null,null,null,null,null,null,null,null,null,null,null,null,null,null,null,null,null,null,null,null,null,null,null,null,null,null,null,null,null,null,null,null,null,null,null,null,null,null,null,null,null,null,null,null,null,null,null,null,null,null,null,null,null,null,null,null,null,null,null,null,null,null,null,null,null,null,null,null,null,null,null,null,null,null,null,null,null,null,null,null,null,null,null,null,12,null,null,null,null,null,null,null,null,null,null,514.77840000000003]
[79,410912205,6222016122055,"فرشة هاي الهلال بالقاعدة","Helal","فرش تواليت","قطعة",17.543859649122808,{"$f":"H83+(H83*14%)","v":20},{"$f":"I83-(I83*12%)","v":17.600000000000001},22,{"$f":"I83-(I83*7%)","v":18.600000000000001},22,22,22,null,null,null,null,null,null,null,null,null,null,null,null,null,null,null,null,null,null,null,null,null,null,null,null,null,null,null,null,null,null,null,null,null,null,null,null,null,null,null,null,null,null,null,null,null,null,null,null,null,null,null,null,null,null,null,null,null,null,null,null,null,null,null,null,null,null,null,null,null,null,null,null,null,null,null,null,null,null,null,null,null,null,null,null,null,null,null,null,null,null,null,null,null,null,null,null,null,null,null,null,null,null,null,null,null,null,null,null,null,null,null,null,null,null,null,null,null,null,null,null,null,null,null,null,null,null,null,null,null,null,null,null,null,null,null,null,null,null,null,null,null,null,null,null,null,null,null,null,null,null,null,null,null,null,null,null,null,null,null,null,null,null,null,null,null,null,null,null,null,0]
[80,410110063,6222016100633,"فرشة هلين اسود","Helal","فرش و مكانس","قطعة",15.072044372098635,{"$f":"H84+(H84*14%)","v":17.182130584192443},{"$f":"I84-(I84*12%)","v":15.12027491408935},23.16,{"$f":"I84-(I84*7%)","v":15.979381443298971},23.16,23.16,23.16,null,12,null,null,null,null,null,null,12,null,null,null,null,null,null,null,null,null,null,null,null,null,null,null,null,null,null,null,null,null,null,24,null,null,null,null,null,null,12,null,null,null,12,null,null,null,null,null,null,null,null,null,null,null,12,3,null,null,12,null,null,null,null,null,null,null,null,null,null,null,null,36,null,null,null,null,null,null,null,null,null,null,null,null,null,null,null,null,null,null,null,null,null,null,null,null,null,null,null,null,null,null,24,null,null,null,12,null,12,null,null,null,null,null,null,36,null,null,null,null,12,null,null,null,12,null,null,null,12,null,null,null,null,null,12,null,null,null,null,null,null,null,12,12,null,12,12,null,null,null,null,null,null,null,null,null,null,12,null,null,null,null,null,null,6,null,null,null,null,99,null,null,null,null,{"$f":"BS84*N84","v":69.48},null,null,null,null,null,{"$f":"AU84*N84","v":555.84}]
[81,410710087,null,"لمامة 4 ريشة","Helal","لمامه","قطعة",null,16.28,{"$f":"I85-(I85*12%)","v":14.326400000000001},17.91,null,17.91,17.91,17.91,null,null,null,null,null,null,null,null,null,null,null,null,null,null,null,null,null,null,null,null,null,null,null,null,null,null,null,6,null,null,null,null,null,null,null,null,null,null,null,null,null,null,null,null,null,null,null,null,null,null,null,null,null,null,null,null,null,null,null,null,null,null,null,null,null,null,null,null,null,null,null,null,null,null,null,null,null,null,null,null,null,null,null,null,null,null,null,null,null,null,null,null,null,null,null,null,null,null,null,null,null,null,null,null,null,null,null,null,null,null,null,null,null,null,null,12,null,null,null,null,null,null,null,null,null,null,null,null,null,null,null,null,null,null,null,null,null,null,null,null,null,null,null,null,25,null,null,null,null,null,null,null,null,null,null,null,null,null,null,null,null,null,null,null,null,null,null,null,null,6]
[82,410710086,6222016100862,"لمامة الهلال 3 ريشة","Helal","لمامة","قطعة",13.157894736842106,{"$f":"H86+(H86*14%)","v":15.000000000000002},{"$f":"I86-(I86*12%)","v":13.200000000000001},16.5,null,16.5,16.5,16.5,null,null,null,null,null,null,null,null,null,null,12,null,null,null,null,null,null,null,null,null,null,null,null,null,null,null,null,6,null,null,null,null,null,null,null,null,6,null,null,null,null,null,null,null,null,null,null,null,null,null,null,null,null,null,null,null,null,null,null,null,null,null,null,null,null,null,null,null,null,null,null,null,null,null,null,null,null,null,null,null,null,null,null,null,null,null,null,null,null,null,null,null,null,null,null,null,null,null,null,null,null,null,null,null,null,null,null,null,null,null,null,null,null,null,null,12,null,null,null,18,null,null,null,null,null,null,null,null,null,null,null,null,null,null,null,null,null,null,null,null,null,null,null,null,null,null,null,18,null,null,null,null,null,null,null,null,null,null,null,null,null,null,null,null,null,null,null,null,null,24,null,null,null,null,null,null,null,null,{"$f":"GG86*M86","v":0},null,null,null,14.48,{"$f":"GP86*1.14","v":16.507199999999997}]
[83,410712700,null,"لمامه نوفا 2 ريشه","Helal",null,"قطعة",null,null,null,16.495799999999999,null,16.495799999999999,16.495799999999999,16.495799999999999,null,null,null,12,null,12,null,null,null,null,null,null,null,null,null,24,null,null,null,null,null,null,null,null,null,null,null,6,null,null,null,12,null,null,null,null,6,null,null,null,null,null,null,null,null,null,null,null,null,null,null,null,12,null,null,3,null,null,null,null,null,null,null,null,null,null,null,null,null,null,null,null,null,null,null,null,null,null,null,null,null,null,null,null,null,null,null,null,null,null,null,null,12,null,null,null,null,null,null,null,null,null,null,null,null,null,null,null,null,null,null,null,null,null,null,null,null,null,null,null,null,null,null,null,null,null,null,null,null,null,null,null,null,null,null,null,null,null,null,null,null,null,null,null,null,null,null,null,null,null,null,null,null,null,null,null,null,null,null,null,null,144,null,null,null,null,null,null,null,87,null,null,null,null,{"$f":"BS87*N87","v":49.487399999999994},null,null,null,null,null,{"$f":"AU87*N87","v":197.94959999999998}]
[84,411012501,null,"مساحة 55 سم","Helal",null,"قطعة",null,null,null,61.62,null,61.62,61.62,61.62,null,null,null,null,null,null,null,null,null,null,null,null,null,null,null,null,null,null,null,null,null,null,null,null,null,null,null,null,null,null,null,null,null,null,null,null,null,null,null,null,null,null,null,null,null,null,null,null,null,null,null,null,null,null,null,null,null,null,null,null,null,null,null,null,null,null,null,null,null,null,null,null,null,null,null,null,null,null,null,null,null,null,null,null,null,null,null,null,null,null,null,null,null,null,null,null,null,null,null,null,null,null,null,null,null,null,null,null,null,null,null,null,null,null,null,null,null,null,null,null,null,null,null,null,null,null,null,null,null,null,null,null,null,null,null,null,null,null,null,null,null,null,null,null,null,null,null,null,null,null,null,null,null,null,null,null,null,null,null,null,null,null,null,null,null,null,null,null,null,0]
[85,411012502,null,"مساحة 75 سم","Helal",null,"قطعة",null,null,null,76.44,null,76.44,76.44,76.44,null,null,null,null,null,null,null,null,null,null,null,null,null,null,null,null,null,null,null,null,null,null,null,null,null,null,null,null,null,null,null,null,null,null,null,null,null,null,null,null,null,null,null,null,null,null,null,null,null,null,null,null,null,null,null,null,null,null,null,null,null,null,null,null,null,null,null,null,null,null,null,null,null,null,null,null,null,null,null,null,null,null,null,null,null,null,null,null,null,null,null,null,null,null,null,null,null,null,null,null,null,null,null,null,null,null,null,null,null,null,null,null,null,null,null,null,null,null,null,null,null,null,null,null,null,null,null,null,null,null,null,null,null,null,null,null,null,null,null,null,null,null,null,null,null,null,null,null,null,null,null,null,null,null,null,null,null,null,null,null,null,null,null,null,null,null,null,null,null,0]
[86,411310100,6222016101005,"مساحة باركيه الهلال العجيبة ","Helal","مساحة","قطعة",43.469999999999992,{"$f":"H90+(H90*14%)","v":49.555799999999991},{"$f":"I90-(I90*12%)","v":43.609103999999995},54.51,null,54.51,54.51,54.51,null,null,null,null,null,null,null,null,null,null,null,null,null,null,null,null,null,null,null,null,null,null,null,null,null,null,null,null,null,null,null,null,null,null,null,null,null,null,null,null,null,null,null,null,null,null,null,null,null,null,null,null,null,null,null,null,null,null,null,null,null,null,null,null,null,null,null,null,null,null,null,null,null,null,null,null,null,null,null,null,null,null,null,null,null,null,null,null,null,null,null,null,null,null,null,null,null,null,null,null,null,null,null,null,null,null,null,null,null,null,null,null,null,null,null,null,null,null,null,null,null,null,null,null,null,null,null,null,null,null,null,null,null,null,null,null,null,null,null,null,null,null,null,null,null,null,null,null,null,null,null,null,null,null,null,null,null,null,null,null,null,null,null,null,null,null,null,null,null,0]
[87,411010082,6222016100824,"مساحة زجاج الهلال 30 سم معدن","Helal","مساحة زجاج","قطعة",9.4542823788618691,{"$f":"H91+(H91*14%)","v":10.777881911902531},{"$f":"I91-(I91*12%)","v":9.4845360824742269},11.86,null,11.86,11.86,11.86,12,null,null,null,null,null,null,null,null,null,null,null,null,null,null,null,null,null,null,null,null,null,12,null,null,null,null,null,null,null,null,12,null,null,null,null,6,null,null,null,null,null,12,null,null,null,null,null,null,null,null,null,null,null,null,null,12,12,null,null,null,null,null,null,null,null,null,null,24,null,null,48,null,null,null,null,null,null,null,null,null,null,null,null,null,null,null,null,null,null,null,null,null,null,null,null,null,null,null,null,null,null,null,null,null,null,null,null,null,null,null,null,null,null,null,null,null,null,null,null,null,null,null,null,null,null,null,null,null,null,null,null,12,null,null,null,null,6,null,null,null,null,null,null,null,null,null,null,null,null,null,null,null,null,null,null,null,null,12,null,null,null,null,null,null,null,null,null,null,78,null,null,null,null,null,null,null,null,null,null,{"$f":"AU91*N91","v":142.32}]
[88,411010081,6222016100817,"مساحة زجاج الهلال بالإسفنجة","Helal","مساحة زجاج","قطعة",12.014817189803622,{"$f":"H92+(H92*14%)","v":13.69689159637613},{"$f":"I92-(I92*12%)","v":12.053264604810995},15.07,null,15.07,15.07,15.07,null,null,null,null,null,null,null,null,null,null,null,null,null,null,null,null,null,null,null,null,null,null,null,null,null,null,null,null,null,null,null,12,null,null,null,null,null,null,null,null,null,null,null,null,null,null,null,null,null,null,null,null,null,null,null,null,null,null,null,null,null,null,null,null,null,null,null,null,null,null,null,null,null,null,null,null,null,null,null,null,null,null,null,null,null,null,null,null,null,null,null,null,null,null,null,null,null,null,null,null,null,null,null,null,null,null,null,null,null,null,null,null,null,null,null,null,null,null,null,null,null,null,null,null,null,null,null,null,null,null,null,null,null,null,null,null,null,null,null,null,null,null,null,null,null,null,null,null,null,null,null,null,null,null,null,null,null,null,null,null,null,null,null,null,null,null,null,null,null,12,null,null,null,null,null,null,null,null,null,null,180.84]
[89,411018008,null,"مساحة زجاج نوفا بالاسفنجه","Helal",null,"قطعة",null,null,null,21.032999999999998,null,21.032999999999998,21.032999999999998,21.032999999999998,null,null,null,null,null,null,null,null,null,null,null,null,null,null,null,null,null,null,null,null,null,null,null,null,null,null,null,null,null,null,null,null,null,null,null,null,null,null,null,null,null,null,null,null,null,null,null,null,null,null,null,null,null,null,null,null,null,null,null,null,null,null,null,null,null,null,null,null,null,null,null,null,null,null,null,null,null,null,null,null,null,null,null,null,null,null,null,null,null,null,null,null,null,null,null,null,null,null,null,null,null,null,null,null,null,null,null,null,null,null,null,null,null,null,null,null,null,null,null,null,null,null,null,null,null,null,null,null,null,null,null,null,null,null,null,null,null,null,null,null,null,null,null,null,null,null,null,null,null,null,null,null,null,null,null,null,null,null,null,null,null,null,null,null,null,null,null,null,null,0]
[90,411012509,null,"مساحة زجاج نوفا بالكاوتشه","Helal",null,"قطعة",null,null,null,15.367199999999999,null,15.367199999999999,15.367199999999999,15.367199999999999,12,null,null,null,null,null,null,null,null,null,null,null,null,10,null,null,null,null,null,null,null,null,null,12,null,null,null,null,null,null,null,12,null,null,null,null,null,null,null,null,null,null,null,null,null,null,null,null,null,null,null,null,null,null,null,null,null,null,null,null,null,null,null,12,null,null,null,null,null,null,null,null,null,null,null,null,null,null,null,null,null,null,null,null,null,null,null,null,null,null,null,null,null,null,null,null,null,null,null,null,null,null,null,null,null,null,null,null,null,null,null,null,null,null,null,null,null,null,null,null,null,null,null,null,null,null,null,null,null,null,null,null,null,null,null,null,null,null,null,null,null,null,null,null,null,null,null,null,null,null,null,null,null,null,null,null,null,null,null,null,null,null,null,null,null,null,null,null,null,46,null,null,null,null,null,null,null,null,null,null,{"$f":"AU94*N94","v":184.40639999999999}]
[91,411012503,null,"مساحة ستايل 40سم","Helal","مساحه","قطعة",null,19.32,{"$f":"I95-(I95*12%)","v":17.0016},21.26,null,21.26,21.26,21.26,null,null,null,null,null,null,null,null,null,null,null,null,null,null,null,null,null,null,null,null,null,null,null,null,null,null,null,null,null,null,null,null,null,null,null,null,null,null,null,null,null,null,null,null,null,null,null,null,null,null,null,null,null,null,null,null,null,null,null,null,null,null,null,null,null,null,null,null,null,null,null,null,null,null,null,null,null,null,null,null,null,null,null,null,null,null,null,null,null,null,null,null,null,null,null,null,null,null,null,null,null,null,null,null,null,null,null,null,null,null,null,null,null,null,null,null,null,null,null,null,null,null,null,null,null,null,null,null,null,null,null,null,null,null,null,null,null,null,null,null,null,null,null,null,null,null,null,null,null,null,null,null,null,null,null,null,null,null,null,null,null,null,null,null,null,null,null,null,null,0]
[92,411010298,null,"مساحة نوفا 40 سم","Helal",null,"قطعة",null,null,null,20.896199999999997,null,20.896199999999997,20.896199999999997,{"$f":"N96","v":20.896199999999997},null,null,null,null,null,null,null,null,null,null,null,null,null,null,null,null,null,null,null,null,null,null,null,12,null,12,null,null,null,null,null,12,null,null,null,null,null,null,null,null,null,null,null,null,null,null,null,null,null,null,null,null,null,null,null,null,null,null,null,null,null,null,null,null,12,null,null,null,null,null,null,null,null,null,null,null,null,null,null,null,null,null,null,null,null,null,null,null,null,null,null,null,null,null,24,null,null,null,null,null,null,null,null,null,null,null,null,null,null,null,null,null,null,null,null,null,12,null,null,null,null,null,null,null,null,null,null,null,null,null,null,null,null,null,null,null,null,null,null,null,null,null,null,null,null,null,null,null,null,null,null,null,null,null,null,null,null,null,null,null,null,null,null,null,null,null,null,null,null,36,null,null,null,null,null,null,null,null,null,null,{"$f":"AU96*N96","v":250.75439999999998}]
[93,411010074,6222016100749,"مساحة هلال صغيرة 40سم","Helal","مساحة","قطعة",14.035087719298247,{"$f":"H97+(H97*14%)","v":16},{"$f":"I97-(I97*12%)","v":14.08},17.600000000000001,null,19,19,19,null,null,null,null,null,6,null,null,null,18,null,null,null,null,null,null,null,null,null,null,null,null,null,null,null,null,null,null,12,null,null,null,null,null,null,null,null,12,null,null,null,null,null,null,null,null,null,6,null,null,null,null,null,null,12,null,null,null,null,null,30,null,null,null,12,null,null,null,null,null,null,24,null,null,12,null,null,null,null,null,null,null,null,24,null,null,null,null,null,null,null,null,null,null,null,null,null,null,null,null,24,null,null,null,null,null,null,null,6,null,null,null,null,null,null,null,null,null,null,null,null,null,null,null,null,12,null,null,null,12,null,null,12,null,null,null,null,null,6,null,null,null,null,12,null,null,null,null,null,null,null,null,null,null,null,null,null,null,null,null,null,null,null,null,null,null,6,null,null,66]
[94,411010080,6222016100800,"مساحة هلال كبيرة 46سم","Helal","مساحة","قطعة",16.666666666666668,{"$f":"H98+(H98*14%)","v":19},{"$f":"I98-(I98*12%)","v":16.72},20.9,null,24,24,24,null,null,null,null,null,null,null,null,null,null,null,null,null,null,null,null,null,null,null,null,null,null,null,null,null,null,null,null,null,null,null,null,null,null,null,null,null,12,null,null,null,null,null,null,null,null,null,null,null,null,null,null,null,null,null,null,null,null,null,null,null,null,null,null,null,null,null,null,null,null,null,12,null,null,null,null,null,null,null,null,null,null,null,11,null,null,null,null,null,null,null,null,null,null,null,null,null,null,null,null,24,null,null,null,null,null,null,null,null,null,null,null,null,null,null,null,null,null,null,null,null,null,null,null,null,12,null,null,null,null,null,null,null,null,null,null,null,null,null,null,null,null,null,null,null,null,null,null,null,null,null,null,null,null,null,null,null,null,null,null,null,null,null,null,null,null,null,null,null,12]
[95,411010242,6222016102422,"مساحة وفرشة ميكس الهلال 40سم","Helal","مساحة","قطعة",21.92982456140351,{"$f":"H99+(H99*14%)","v":25.000000000000004},{"$f":"I99-(I99*12%)","v":22.000000000000004},27.5,null,27.5,27.5,27.5,null,null,null,null,null,null,null,null,null,null,null,null,null,null,null,null,null,null,null,null,null,null,null,null,36,null,null,null,null,null,null,null,null,null,null,null,null,null,null,null,null,null,null,null,null,null,null,null,null,null,null,null,null,null,null,null,null,null,null,null,null,null,null,null,null,null,null,null,null,null,null,null,null,null,null,null,null,null,null,null,null,null,null,null,null,null,null,null,null,null,null,null,null,null,null,null,null,null,null,null,null,null,null,null,null,null,null,null,null,null,null,null,null,null,null,null,null,null,null,null,null,null,null,null,null,null,null,null,null,null,null,null,null,null,null,null,null,null,null,null,null,null,null,null,null,null,null,null,null,null,null,null,null,null,null,null,null,null,null,null,12,null,null,null,null,null,null,null,null,36]
[96,410410447,6222016104471,"مكنسة الهلال السحرية","Helal","فرش و مكانس","قطعة",88.141486761264275,{"$f":"H100+(H100*14%)","v":100.48129490784127},{"$f":"I100-(I100*12%)","v":88.423539518900327},110.53,null,110.53,110.53,110.53,null,null,null,null,null,null,null,null,null,null,null,null,null,null,null,null,null,null,null,null,null,null,null,null,null,null,null,null,null,null,null,null,null,null,null,null,null,null,null,null,null,null,null,null,null,null,null,null,null,null,null,null,null,null,null,null,null,null,null,null,null,null,null,null,null,null,null,null,null,null,null,null,null,null,null,null,null,null,null,null,null,null,null,null,null,null,null,null,null,null,null,null,null,null,null,null,null,null,null,null,null,null,null,null,null,null,null,null,null,null,null,null,null,null,null,null,null,null,null,null,null,null,null,null,null,null,null,null,null,null,null,null,null,null,null,null,null,null,null,null,null,null,null,null,null,null,null,null,null,null,null,null,null,null,null,null,null,null,null,null,null,null,null,null,null,null,null,null,null,0]
[97,410410054,null,"مكنسة سوبر اجزى","Helal",null,null,null,null,null,null,null,19.14,19.14,19.14,null,null,null,null,null,null,null,null,null,null,null,null,null,null,null,null,null,null,null,null,null,null,null,null,null,null,null,null,null,null,null,null,null,null,null,null,null,null,null,null,null,null,null,null,null,null,null,null,null,null,null,null,null,null,null,null,null,null,null,null,null,null,null,null,null,null,null,null,null,null,null,null,null,null,null,null,null,null,null,null,null,null,null,null,null,null,null,null,null,null,null,null,null,null,null,null,null,null,null,null,null,null,null,null,null,null,null,null,null,null,null,null,null,null,null,null,null,null,null,null,null,null,null,null,null,null,null,null,null,null,null,null,null,null,null,null,null,null,null,null,null,null,null,null,null,null,null,null,null,null,null,null,null,null,null,null,null,null,null,null,null,null,null,null,null,null,null,null,null,{"$f":"SUM(P101:BW101)","v":0}]
[98,411719238,6222016192386,"منشر غسيل هلال 3 دور","Helal","منشر","قطعة",350,{"$f":"H102+(H102*14%)","v":399},{"$f":"I102-(I102*12%)","v":351.12},438.9,null,438.9,438.9,438.9,null,null,null,null,null,null,null,null,null,null,null,null,null,null,null,null,null,null,null,null,null,null,null,null,10,null,null,null,null,null,null,null,null,null,null,null,null,null,null,null,null,null,null,1,null,null,null,null,1,null,null,null,null,null,null,null,null,null,null,null,null,null,null,null,null,null,null,2,null,null,1,3,null,null,null,null,null,null,null,null,null,null,null,null,null,null,null,null,null,null,null,null,null,null,null,null,null,null,null,null,null,null,null,null,null,null,null,null,null,null,null,null,null,null,null,null,null,null,null,null,null,null,null,null,null,null,null,null,null,null,null,null,null,null,null,null,null,null,null,2,null,null,null,null,null,null,null,null,null,null,null,null,null,null,null,null,null,null,null,null,null,null,5,null,null,null,null,null,null,12]
[99,411310096,6222016100961,"موب قطن  الهلال","Helal","موب","قطعة",{"$f":"9/1.14","v":7.8947368421052637},{"$f":"H103+(H103*14%)","v":9},{"$f":"I103-(I103*12%)","v":7.92},9.9,null,10.89,10.89,10.89,null,null,null,24,null,null,null,null,null,null,null,null,null,null,null,null,null,null,null,null,null,null,null,null,null,null,null,null,null,null,null,24,null,null,null,null,null,null,null,null,null,null,null,null,null,null,null,null,null,null,null,null,null,null,null,null,null,null,null,null,null,null,null,null,null,null,null,null,null,null,null,12,null,null,null,null,null,12,null,null,null,null,null,null,null,null,null,null,null,null,null,null,null,null,null,null,null,null,null,null,null,null,null,null,null,null,null,null,null,null,null,null,null,null,null,null,null,null,null,null,null,null,null,null,null,null,null,null,null,null,null,null,null,null,null,null,null,null,null,null,null,null,12,null,null,null,null,12,null,null,null,null,null,null,null,null,null,null,12,null,null,null,null,null,null,null,null,null,null,48,null,null,null,null,null,null,null,null,null,null,{"$f":"AU103*N103","v":261.36}]
[100,411316984,6222016169845,"موب قطن 100% ","Helal","موب","قطعة",13.157894736842106,{"$f":"H104+(H104*14%)","v":15.000000000000002},{"$f":"I104-(I104*12%)","v":13.200000000000001},16.5,null,16.5,16.5,16.5,null,null,null,null,null,null,null,null,null,null,null,null,null,null,null,null,null,null,null,null,null,null,null,null,null,null,null,null,null,null,null,null,null,null,null,null,null,null,null,null,null,null,null,null,null,null,null,null,null,null,null,null,null,null,null,null,null,null,null,null,null,null,null,null,null,null,null,null,null,null,null,null,null,null,null,null,null,null,null,null,null,null,null,null,null,null,null,null,null,null,null,null,null,null,null,null,null,null,null,null,null,null,null,null,null,null,null,null,null,null,null,null,null,null,null,null,null,null,null,null,null,null,null,null,null,null,null,null,null,null,null,null,null,null,null,null,null,null,null,null,null,null,null,null,null,null,null,null,null,null,null,null,null,null,null,null,null,null,null,null,null,null,null,null,null,null,null,null,null,0]
[101,411316999,6222016169999,"موب قطن 100% بيد معدن 120 سم مدهون","Helal","موب","قطعة",21.93,{"$f":"H105+(H105*14%)","v":25.0002},{"$f":"I105-(I105*12%)","v":22.000176},27.5,null,27.5,27.5,27.5,null,null,null,null,null,null,null,null,null,null,null,null,null,null,null,null,null,null,null,null,null,null,null,null,null,null,null,null,null,null,null,null,null,null,null,null,null,null,null,null,null,null,null,null,null,null,null,null,null,null,null,null,null,null,null,null,null,null,null,null,null,null,null,null,null,null,null,null,null,null,null,null,null,null,null,null,null,null,null,null,null,null,null,null,null,null,null,null,null,null,null,null,null,null,null,null,null,null,null,null,null,null,null,null,null,null,null,null,null,null,null,null,null,null,null,null,null,null,null,null,null,null,null,null,null,null,null,null,null,null,null,null,null,null,null,null,null,null,null,null,null,null,null,null,null,null,null,null,null,null,null,null,null,null,null,null,null,null,null,null,null,null,null,null,null,null,null,null,null,0]
[102,411316985,null,"موب نوفا قطن 100%","Helal",null,"قطعة",null,null,null,20.907599999999999,null,20.907599999999999,20.907599999999999,20.907599999999999,null,null,null,null,null,null,null,null,null,null,null,null,null,null,null,null,null,null,null,null,null,null,null,null,null,null,null,null,null,null,null,null,null,null,null,null,null,null,null,null,null,null,null,null,null,null,null,null,null,null,null,null,null,null,null,null,null,null,null,null,null,null,null,null,null,null,null,null,null,null,null,null,null,null,null,null,null,null,null,null,null,null,null,null,null,null,null,null,null,null,null,null,null,null,null,null,null,null,null,null,null,null,null,null,null,null,null,null,null,null,null,null,null,null,null,null,null,null,null,null,null,null,null,null,null,null,null,null,null,null,null,null,null,null,null,null,null,null,null,null,null,null,null,null,null,null,null,null,null,null,null,null,null,null,null,null,null,null,null,null,null,null,null,null,null,null,null,null,null,0]
[103,411419262,null,"موب نوفا قطن 100% بيد معدن 110سم مدهون","Helal",null,"قطعة",null,null,null,31.897199999999998,null,31.897199999999998,31.897199999999998,31.897199999999998,null,null,null,null,null,null,null,null,null,null,null,null,null,null,null,null,null,null,null,null,null,null,null,null,null,null,null,null,null,null,null,null,null,null,null,null,null,null,null,null,null,null,null,null,null,null,null,null,null,null,null,null,null,null,null,null,null,null,null,null,null,null,null,null,null,null,null,null,null,null,null,null,null,null,null,null,null,null,null,null,null,null,null,null,null,null,null,null,null,null,null,null,null,null,null,null,null,null,null,null,null,null,null,null,null,null,null,null,null,null,null,null,null,null,null,null,null,null,null,null,null,null,null,null,null,null,null,null,null,null,null,null,null,null,null,null,null,null,null,null,null,null,null,null,null,null,null,null,null,null,null,null,null,null,null,null,null,null,null,null,null,null,null,null,null,null,null,null,null,0]
[104,411410144,6222016101449,"يد جردل سبيدو","Helal","جرادل","قطعة",43.549733253809713,{"$f":"H108+(H108*14%)","v":49.646695909343073},{"$f":"I108-(I108*12%)","v":43.689092400221902},54.61,null,54.61,54.61,54.61,null,null,null,null,null,null,null,null,null,null,null,null,null,null,null,null,null,null,null,null,null,null,null,null,null,null,null,null,null,null,null,null,null,null,null,null,null,null,null,null,null,null,null,null,null,null,null,null,null,null,null,null,null,null,null,null,null,null,null,null,null,null,null,null,null,null,null,null,null,null,null,null,null,null,null,null,null,null,null,null,null,null,null,null,null,null,null,null,null,null,null,null,null,null,null,null,null,null,null,null,null,null,null,null,null,null,null,null,null,null,null,null,null,null,null,null,null,null,null,null,null,null,null,null,null,null,null,null,null,null,null,null,null,null,null,null,null,null,null,null,null,null,null,null,null,null,null,null,null,null,null,null,null,null,null,null,null,null,null,null,null,null,null,null,null,null,null,null,null,0]
[105,411410167,6222016101678,"يد خشب لوكس الهلال مدهون ( يد غليظة 120سم)","Helal","أيادي","قطعة",12.398222222222223,{"$f":"H109+(H109*14%)","v":14.133973333333335},{"$f":"I109-(I109*12%)","v":12.437896533333335},15.55,null,15.55,15.55,15.55,null,null,null,null,null,null,null,null,null,null,null,null,null,null,null,null,null,null,null,null,null,null,null,null,null,null,null,null,null,null,null,null,null,null,null,null,null,null,null,null,null,null,null,null,null,null,null,null,null,null,null,null,null,null,null,null,null,null,null,null,null,null,null,null,null,null,null,null,null,null,null,null,null,null,null,null,null,null,null,null,null,null,null,null,null,null,null,null,null,null,null,null,null,null,null,null,null,null,null,null,null,null,null,null,null,null,null,null,null,null,null,null,null,null,null,null,null,null,null,null,null,null,null,null,null,null,null,null,null,null,null,null,null,null,null,null,null,null,null,null,null,null,null,null,null,null,null,null,null,null,null,null,null,null,null,null,null,null,null,null,null,null,null,null,null,null,null,null,null,0]
[106,411410116,6222016101166,"يد زان الهلال 120 سم مغلف","Helal","أيادي","قطعة",8.9012727777777769,{"$f":"H110+(H110*14%)","v":10.147450966666666},{"$f":"I110-(I110*12%)","v":8.9297568506666654},11.16,null,11.16,11.16,11.16,null,null,null,null,null,null,null,null,null,null,null,null,null,null,null,null,null,null,null,null,null,null,null,null,null,null,null,null,null,null,null,null,null,null,null,null,null,null,null,null,null,null,null,null,null,null,null,null,null,null,null,null,null,null,null,null,null,null,null,null,null,null,null,null,null,null,null,null,null,null,null,null,null,null,null,null,null,null,null,null,null,null,null,null,null,null,null,null,null,null,null,null,null,null,null,null,null,null,null,null,null,null,null,null,null,null,null,null,null,null,null,null,null,null,null,null,null,null,null,null,null,null,null,null,null,null,null,null,null,null,null,null,null,null,null,null,null,null,null,null,null,null,null,null,null,null,null,null,null,null,null,null,null,null,null,null,null,null,null,null,null,null,null,null,null,null,null,null,null,0]
[107,411410115,null,"يد نوفا معدن 120 سم مدهون","Helal",null,"قطعة",null,null,null,16.495799999999999,null,16.495799999999999,16.495799999999999,16.495799999999999,null,null,null,null,null,null,null,null,12,null,null,48,null,12,null,null,null,null,null,24,null,null,null,null,null,null,null,12,null,null,null,null,null,72,null,null,null,null,null,null,null,null,null,null,null,null,null,null,null,null,null,null,null,-1,null,null,null,null,null,null,null,null,null,null,null,null,null,null,null,null,null,null,null,null,null,null,null,null,null,null,null,null,null,null,null,null,null,null,null,null,null,null,null,null,null,24,null,null,null,12,24,null,null,24,null,null,24,null,null,null,null,null,null,null,null,null,null,null,null,null,null,null,null,null,12,null,null,null,null,null,null,null,null,null,null,null,null,null,null,null,null,null,null,null,null,null,null,null,null,null,null,null,20,null,null,null,null,null,null,null,null,null,null,null,null,null,null,null,null,179]
[108,411416970,6222016169708,"يد هلال معدن 120 سم مدهون أحمر","Helal","أيادي","قطعة",13.157894736842106,{"$f":"H112+(H112*14%)","v":15.000000000000002},{"$f":"I112-(I112*12%)","v":13.200000000000001},16.5,null,16.5,16.5,16.5,null,null,null,null,null,null,null,null,null,null,null,null,null,null,null,null,null,null,null,null,null,null,null,null,null,null,null,null,null,null,null,null,null,null,null,null,null,null,null,null,null,null,null,null,null,null,null,null,null,null,null,null,null,null,null,null,null,null,null,null,null,null,null,null,null,null,null,null,null,null,null,null,null,null,null,null,null,null,null,null,null,null,null,null,null,null,null,null,null,null,null,null,null,null,null,null,null,null,null,null,null,null,null,null,null,null,null,null,null,12,null,null,null,null,null,12,null,null,null,null,null,null,null,null,null,null,null,null,null,null,null,null,null,null,null,null,null,null,null,null,null,null,null,null,null,null,null,null,null,null,null,null,null,null,null,null,null,null,null,null,null,null,null,null,null,null,null,null,null,0]
[null,null,null,null,null,null,null,null,null,null,null,null,null,null,null,null,null,null,null,null,null,null,null,null,null,null,null,null,null,null,null,null,null,null,null,null,null,null,null,null,null,null,null,null,null,null,null,null,null,null,null,null,null,null,null,null,null,null,null,null,null,null,null,null,null,null,null,null,null,null,null,null,null,null,null,null,null,null,null,null,null,null,null,null,null,null,null,null,null,null,null,null,null,null,null,null,null,null,null,null,null,null,null,null,null,null,null,null,null,null,null,null,null,null,null,null,null,null,null,null,null,null,null,null,null,null,null,null,null,null,null,null,null,null,null,null,null,null,null,null,null,null,null,null,null,null,null,null,null,null,null,null,null,null,null,null,null,null,null,null,null,null,null,null,null,null,null,null,null,null,null,null,null,null,null,null,null,null,null,null,null,null,null,null,0]
[null,null,null,null,null,null,null,null,null,null,null,null,null,null,null,null,null,null,null,null,null,null,null,null,null,null,null,null,null,null,null,null,null,null,null,null,null,null,null,null,null,null,null,null,null,null,null,null,null,null,null,null,null,null,null,null,null,null,null,null,null,null,null,null,null,null,null,null,null,null,null,null,null,null,null,null,null,null,null,null,null,null,null,null,null,null,null,null,null,null,null,null,null,null,null,null,null,null,null,null,null,null,null,null,null,null,null,null,null,null,null,null,null,null,null,null,null,null,null,null,null,null,null,null,null,null,null,null,null,null,null,null,null,null,null,null,null,null,null,null,null,null,null,null,null,null,null,null,null,null,null,null,null,null,null,null,null,null,null,null,null,null,null,null,null,null,null,null,null,null,null,null,null,null,null,null,null,null,null,null,null,null,null,null,0,null,null,null,null,{"$f":"M114*0.77","v":0},{"$f":"GG114*GH114","v":0}]
[null,"اجمالي البيع"]
[null,"اجمالي الفواتير",null,null,null,null,null,null,null,null,null,null,null,null,null,{"$f":"P5*$N$5+P6*$N$6+P7*$N$7+P8*$N$8+P9*$N$9+P10*$N$10+P11*$N$11+P12*$N$12+P13*$N$13+P14*$N$14+P15*$N$15+P16*$N$16+P17*$N$17+P18*$N$18+P19*$N$19+P20*$N$20+P21*$N$21+P22*$N$22+P23*$N$23+P24*$N$24+P25*$N$25+P26*$N$26+P27*$N$27+P28*$N$28+P29*$N$29+P30*$N$30+P31*$N$31+P32*$N$32+P33*$N$33+P34*$N$34+P35*$N$35+P36*$N$36+P37*$N$37+P38*$N$38+P39*$N$39+P40*$N$40+P41*$N$41+P42*$N$42+P43*$N$43+P44*$N$44+P45*$N$45+P46*$N$46+P47*$N$47+P48*$N$48+P49*$N$49+P50*$N$50+P51*$N$51+P52*$N$52+P53*$N$53+P54*$N$54+P55*$N$55+P56*$N$56+P57*$N$57+P58*$N$58+P59*$N$59+P60*$N$60+P61*$N$61+P62*$N$62+P63*$N$63+P64*$N$64+P65*$N$65+P66*$N$66+P67*$N$67+P68*$N$68+P69*$N$69+P70*$N$70+P71*$N$71+P72*$N$72+P73*$N$73+P74*$N$74+P75*$N$75+P76*$N$76+P77*$N$77+P78*$N$78+P79*$N$79+P80*$N$80+P81*$N$81+P82*$N$82+P83*$N$83+P84*$N$84+P85*$N$85+P86*$N$86+P87*$N$87+P88*$N$88+P89*$N$89+P90*$N$90+P91*$N$91+P92*$N$92+P93*$N$93+P94*$N$94+P95*$N$95+P96*$N$96+P97*$N$97+P98*$N$98+P99*$N$99+P100*$N$100+P102*$N$102+P103*$N$103+P104*$N$104+P105*$N$105+P106*$N$106+P107*$N$107+P108*$N$108+P109*$N$109+P110*$N$110+P111*$N$111+P112*$N$112+P101*$N$101","v":458.73839999999996},1117.92,2396.9567999999999,459.30959999999999,420,610.38959999999997,2084.7600000000002,633.6,668.70959999999991,918,580.76639999999998,1195.8383999999999,826.75440000000003,1273.9535999999998,3122.7336,395.89919999999995,191.51999999999998,403.6968,990.93119999999999,857.14919999999995,1611.8400000000001,734.00160000000005,1107.1199999999999,2026.2624000000001,15599.52,554.59439999999995,578.52,1124.8643999999999,228,1174.0775999999998,192.84,5488.7891999999993,105.60000000000001,2601.4076,178.20000000000002,490.20000000000005,653.13479999999993,901.68000000000006,1793.7198000000001,399.98,192,211.20000000000002,750.24,809.6597999999999,329.96159999999998,2849.7856000000002,901.48559999999998,527.1,630.9,3122.7336,246.52,528.048,448.70399999999995,5744.1642000000011,909.12000000000012,878.89740000000006,1584.6000000000001,142.32,871.31999999999994,316.79999999999995,440.19960000000003,2935.2000000000003,395.4,184.40639999999999,{"$f":"CB5*$N$5+CB6*$N$6+CB7*$N$7+CB8*$N$8+CB9*$N$9+CB10*$N$10+CB11*$N$11+CB12*$N$12+CB13*$N$13+CB14*$N$14+CB15*$N$15+CB16*$N$16+CB17*$N$17+CB18*$N$18+CB19*$N$19+CB20*$N$20+CB21*$N$21+CB22*$N$22+CB23*$N$23+CB24*$N$24+CB25*$N$25+CB26*$N$26+CB27*$N$27+CB28*$N$28+CB29*$N$29+CB30*$N$30+CB31*$N$31+CB32*$N$32+CB33*$N$33+CB34*$N$34+CB35*$N$35+CB36*$N$36+CB37*$N$37+CB38*$N$38+CB39*$N$39+CB40*$N$40+CB41*$N$41+CB42*$N$42+CB43*$N$43+CB44*$N$44+CB45*$N$45+CB46*$N$46+CB47*$N$47+CB48*$N$48+CB49*$N$49+CB50*$N$50+CB51*$N$51+CB52*$N$52+CB53*$N$53+CB54*$N$54+CB55*$N$55+CB56*$N$56+CB57*$N$57+CB58*$N$58+CB59*$N$59+CB60*$N$60+CB61*$N$61+CB62*$N$62+CB63*$N$63+CB64*$N$64+CB65*$N$65+CB66*$N$66+CB67*$N$67+CB68*$N$68+CB69*$N$69+CB70*$N$70+CB71*$N$71+CB72*$N$72+CB73*$N$73+CB74*$N$74+CB75*$N$75+CB76*$N$76+CB77*$N$77+CB78*$N$78+CB79*$N$79+CB80*$N$80+CB81*$N$81+CB82*$N$82+CB83*$N$83+CB84*$N$84+CB85*$N$85+CB86*$N$86+CB87*$N$87+CB88*$N$88+CB89*$N$89+CB90*$N$90+CB91*$N$91+CB92*$N$92+CB93*$N$93+CB94*$N$94+CB95*$N$95+CB96*$N$96+CB97*$N$97+CB98*$N$98+CB99*$N$99+CB100*$N$100+CB102*$N$102+CB103*$N$103+CB104*$N$104+CB105*$N$105+CB106*$N$106+CB107*$N$107+CB108*$N$108+CB109*$N$109+CB110*$N$110+CB111*$N$111+CB112*$N$112+CB101*$N$101","v":478.75439999999998},593.98559999999998,2382,659.97,1532.13,461.25,1794.7599999999998,11453.0936,422.40000000000003,587.54639999999995,228,298.44,435.65999999999997,486.68,800.33999999999992,327.3,542.32560000000001,1423.78,774.06000000000006,1313.9856,819.66,676.69740000000002,871.31999999999994,577.68000000000006,192,192.84,821.8,501.50879999999995,521.48159999999996,329.96159999999998,{"$f":"DF5*$O$5+DF6*$O$6+DF7*$O$7+DF8*$O$8+DF9*$O$9+DF10*$O$10+DF11*$O$11+DF12*$O$12+DF13*$O$13+DF14*$O$14+DF15*$O$15+DF16*$O$16+DF17*$O$17+DF18*$O$18+DF19*$O$19+DF20*$O$20+DF21*$O$21+DF22*$O$22+DF23*$O$23+DF24*$O$24+DF25*$O$25+DF26*$O$26+DF27*$O$27+DF28*$O$28+DF29*$O$29+DF30*$O$30+DF31*$O$31+DF32*$O$32+DF33*$O$33+DF34*$O$34+DF35*$O$35+DF36*$O$36+DF37*$O$37+DF38*$O$38+DF39*$O$39+DF40*$O$40+DF41*$O$41+DF42*$O$42+DF43*$O$43+DF44*$O$44+DF45*$O$45+DF46*$O$46+DF47*$O$47+DF48*$O$48+DF49*$O$49+DF50*$O$50+DF51*$O$51+DF52*$O$52+DF53*$O$53+DF54*$O$54+DF55*$O$55+DF56*$O$56+DF57*$O$57+DF58*$O$58+DF59*$O$59+DF60*$O$60+DF61*$O$61+DF62*$O$62+DF63*$O$63+DF64*$O$64+DF65*$O$65+DF66*$O$66+DF67*$O$67+DF68*$O$68+DF69*$O$69+DF70*$O$70+DF71*$O$71+DF72*$O$72+DF73*$O$73+DF74*$O$74+DF75*$O$75+DF76*$O$76+DF77*$O$77+DF78*$O$78+DF79*$O$79+DF80*$O$80+DF81*$O$81+DF82*$O$82+DF83*$O$83+DF84*$O$84+DF85*$O$85+DF86*$O$86+DF87*$O$87+DF88*$O$88+DF89*$O$89+DF90*$O$90+DF91*$O$91+DF92*$O$92+DF93*$O$93+DF94*$O$94+DF95*$O$95+DF96*$O$96+DF97*$O$97+DF98*$O$98+DF99*$O$99+DF100*$O$100+DF102*$O$102+DF103*$O$103+DF104*$O$104+DF105*$O$105+DF106*$O$106+DF107*$O$107+DF108*$O$108+DF109*$O$109+DF110*$O$110+DF111*$O$111+DF112*$O$112+DF101*$O$101","v":925.86239999999998},{"$f":"DG5*$N$5+DG6*$N$6+DG7*$N$7+DG8*$N$8+DG9*$N$9+DG10*$N$10+DG11*$N$11+DG12*$N$12+DG13*$N$13+DG14*$N$14+DG15*$N$15+DG16*$N$16+DG17*$N$17+DG18*$N$18+DG19*$N$19+DG20*$N$20+DG21*$N$21+DG22*$N$22+DG23*$N$23+DG24*$N$24+DG25*$N$25+DG26*$N$26+DG27*$N$27+DG28*$N$28+DG29*$N$29+DG30*$N$30+DG31*$N$31+DG32*$N$32+DG33*$N$33+DG34*$N$34+DG35*$N$35+DG36*$N$36+DG37*$N$37+DG38*$N$38+DG39*$N$39+DG40*$N$40+DG41*$N$41+DG42*$N$42+DG43*$N$43+DG44*$N$44+DG45*$N$45+DG46*$N$46+DG47*$N$47+DG48*$N$48+DG49*$N$49+DG50*$N$50+DG51*$N$51+DG52*$N$52+DG53*$N$53+DG54*$N$54+DG55*$N$55+DG56*$N$56+DG57*$N$57+DG58*$N$58+DG59*$N$59+DG60*$N$60+DG61*$N$61+DG62*$N$62+DG63*$N$63+DG64*$N$64+DG65*$N$65+DG66*$N$66+DG67*$N$67+DG68*$N$68+DG69*$N$69+DG70*$N$70+DG71*$N$71+DG72*$N$72+DG73*$N$73+DG74*$N$74+DG75*$N$75+DG76*$N$76+DG77*$N$77+DG78*$N$78+DG79*$N$79+DG80*$N$80+DG81*$N$81+DG82*$N$82+DG83*$N$83+DG84*$N$84+DG85*$N$85+DG86*$N$86+DG87*$N$87+DG88*$N$88+DG89*$N$89+DG90*$N$90+DG91*$N$91+DG92*$N$92+DG93*$N$93+DG94*$N$94+DG95*$N$95+DG96*$N$96+DG97*$N$97+DG98*$N$98+DG99*$N$99+DG100*$N$100+DG102*$N$102+DG103*$N$103+DG104*$N$104+DG105*$N$105+DG106*$N$106+DG107*$N$107+DG108*$N$108+DG109*$N$109+DG110*$N$110+DG111*$N$111+DG112*$N$112+DG101*$N$101","v":754.45920000000001},298.44,3903.4169999999999,778.80240000000003,197.94959999999998,2774.4191999999998,931.8,555.84,762.19920000000002,828.24,1065,958.69919999999991,628.5,777.6,198,10220.52,1471.9,1063.32,768,289.26,1444.68,250.75439999999998,481.26,684.24,681,1929.9234000000001,662.9,395.89919999999995,1065,1391.1096,1765.6253999999999,660,1061.6711999999998,736.68000000000006,228,384.6,1605.06,1439.04,297,277.92,{"$f":"EU5*$O$5+EU6*$O$6+EU7*$O$7+EU8*$O$8+EU9*$O$9+EU10*$O$10+EU11*$O$11+EU12*$O$12+EU13*$O$13+EU14*$O$14+EU15*$O$15+EU16*$O$16+EU17*$O$17+EU18*$O$18+EU19*$O$19+EU20*$O$20+EU21*$O$21+EU22*$O$22+EU23*$O$23+EU24*$O$24+EU25*$O$25+EU26*$O$26+EU27*$O$27+EU28*$O$28+EU29*$O$29+EU30*$O$30+EU31*$O$31+EU32*$O$32+EU33*$O$33+EU34*$O$34+EU35*$O$35+EU36*$O$36+EU37*$O$37+EU38*$O$38+EU39*$O$39+EU40*$O$40+EU41*$O$41+EU42*$O$42+EU43*$O$43+EU44*$O$44+EU45*$O$45+EU46*$O$46+EU47*$O$47+EU48*$O$48+EU49*$O$49+EU50*$O$50+EU51*$O$51+EU52*$O$52+EU53*$O$53+EU54*$O$54+EU55*$O$55+EU56*$O$56+EU57*$O$57+EU58*$O$58+EU59*$O$59+EU60*$O$60+EU61*$O$61+EU62*$O$62+EU63*$O$63+EU64*$O$64+EU65*$O$65+EU66*$O$66+EU67*$O$67+EU68*$O$68+EU69*$O$69+EU70*$O$70+EU71*$O$71+EU72*$O$72+EU73*$O$73+EU74*$O$74+EU75*$O$75+EU76*$O$76+EU77*$O$77+EU78*$O$78+EU79*$O$79+EU80*$O$80+EU81*$O$81+EU82*$O$82+EU83*$O$83+EU84*$O$84+EU85*$O$85+EU86*$O$86+EU87*$O$87+EU88*$O$88+EU89*$O$89+EU90*$O$90+EU91*$O$91+EU92*$O$92+EU93*$O$93+EU94*$O$94+EU95*$O$95+EU96*$O$96+EU97*$O$97+EU98*$O$98+EU99*$O$99+EU100*$O$100+EU102*$O$102+EU103*$O$103+EU104*$O$104+EU105*$O$105+EU106*$O$106+EU107*$O$107+EU108*$O$108+EU109*$O$109+EU110*$O$110+EU111*$O$111+EU112*$O$112+EU101*$O$101","v":1517.9328},{"$f":"EV5*$O$5+EV6*$O$6+EV7*$O$7+EV8*$O$8+EV9*$O$9+EV10*$O$10+EV11*$O$11+EV12*$O$12+EV13*$O$13+EV14*$O$14+EV15*$O$15+EV16*$O$16+EV17*$O$17+EV18*$O$18+EV19*$O$19+EV20*$O$20+EV21*$O$21+EV22*$O$22+EV23*$O$23+EV24*$O$24+EV25*$O$25+EV26*$O$26+EV27*$O$27+EV28*$O$28+EV29*$O$29+EV30*$O$30+EV31*$O$31+EV32*$O$32+EV33*$O$33+EV34*$O$34+EV35*$O$35+EV36*$O$36+EV37*$O$37+EV38*$O$38+EV39*$O$39+EV40*$O$40+EV41*$O$41+EV42*$O$42+EV43*$O$43+EV44*$O$44+EV45*$O$45+EV46*$O$46+EV47*$O$47+EV48*$O$48+EV49*$O$49+EV50*$O$50+EV51*$O$51+EV52*$O$52+EV53*$O$53+EV54*$O$54+EV55*$O$55+EV56*$O$56+EV57*$O$57+EV58*$O$58+EV59*$O$59+EV60*$O$60+EV61*$O$61+EV62*$O$62+EV63*$O$63+EV64*$O$64+EV65*$O$65+EV66*$O$66+EV67*$O$67+EV68*$O$68+EV69*$O$69+EV70*$O$70+EV71*$O$71+EV72*$O$72+EV73*$O$73+EV74*$O$74+EV75*$O$75+EV76*$O$76+EV77*$O$77+EV78*$O$78+EV79*$O$79+EV80*$O$80+EV81*$O$81+EV82*$O$82+EV83*$O$83+EV84*$O$84+EV85*$O$85+EV86*$O$86+EV87*$O$87+EV88*$O$88+EV89*$O$89+EV90*$O$90+EV91*$O$91+EV92*$O$92+EV93*$O$93+EV94*$O$94+EV95*$O$95+EV96*$O$96+EV97*$O$97+EV98*$O$98+EV99*$O$99+EV100*$O$100+EV102*$O$102+EV103*$O$103+EV104*$O$104+EV105*$O$105+EV106*$O$106+EV107*$O$107+EV108*$O$108+EV109*$O$109+EV110*$O$110+EV111*$O$111+EV112*$O$112+EV101*$O$101","v":604.08000000000004},{"$f":"EW5*$O$5+EW6*$O$6+EW7*$O$7+EW8*$O$8+EW9*$O$9+EW10*$O$10+EW11*$O$11+EW12*$O$12+EW13*$O$13+EW14*$O$14+EW15*$O$15+EW16*$O$16+EW17*$O$17+EW18*$O$18+EW19*$O$19+EW20*$O$20+EW21*$O$21+EW22*$O$22+EW23*$O$23+EW24*$O$24+EW25*$O$25+EW26*$O$26+EW27*$O$27+EW28*$O$28+EW29*$O$29+EW30*$O$30+EW31*$O$31+EW32*$O$32+EW33*$O$33+EW34*$O$34+EW35*$O$35+EW36*$O$36+EW37*$O$37+EW38*$O$38+EW39*$O$39+EW40*$O$40+EW41*$O$41+EW42*$O$42+EW43*$O$43+EW44*$O$44+EW45*$O$45+EW46*$O$46+EW47*$O$47+EW48*$O$48+EW49*$O$49+EW50*$O$50+EW51*$O$51+EW52*$O$52+EW53*$O$53+EW54*$O$54+EW55*$O$55+EW56*$O$56+EW57*$O$57+EW58*$O$58+EW59*$O$59+EW60*$O$60+EW61*$O$61+EW62*$O$62+EW63*$O$63+EW64*$O$64+EW65*$O$65+EW66*$O$66+EW67*$O$67+EW68*$O$68+EW69*$O$69+EW70*$O$70+EW71*$O$71+EW72*$O$72+EW73*$O$73+EW74*$O$74+EW75*$O$75+EW76*$O$76+EW77*$O$77+EW78*$O$78+EW79*$O$79+EW80*$O$80+EW81*$O$81+EW82*$O$82+EW83*$O$83+EW84*$O$84+EW85*$O$85+EW86*$O$86+EW87*$O$87+EW88*$O$88+EW89*$O$89+EW90*$O$90+EW91*$O$91+EW92*$O$92+EW93*$O$93+EW94*$O$94+EW95*$O$95+EW96*$O$96+EW97*$O$97+EW98*$O$98+EW99*$O$99+EW100*$O$100+EW102*$O$102+EW103*$O$103+EW104*$O$104+EW105*$O$105+EW106*$O$106+EW107*$O$107+EW108*$O$108+EW109*$O$109+EW110*$O$110+EW111*$O$111+EW112*$O$112+EW101*$O$101","v":966.2399999999999},{"$f":"EX5*$O$5+EX6*$O$6+EX7*$O$7+EX8*$O$8+EX9*$O$9+EX10*$O$10+EX11*$O$11+EX12*$O$12+EX13*$O$13+EX14*$O$14+EX15*$O$15+EX16*$O$16+EX17*$O$17+EX18*$O$18+EX19*$O$19+EX20*$O$20+EX21*$O$21+EX22*$O$22+EX23*$O$23+EX24*$O$24+EX25*$O$25+EX26*$O$26+EX27*$O$27+EX28*$O$28+EX29*$O$29+EX30*$O$30+EX31*$O$31+EX32*$O$32+EX33*$O$33+EX34*$O$34+EX35*$O$35+EX36*$O$36+EX37*$O$37+EX38*$O$38+EX39*$O$39+EX40*$O$40+EX41*$O$41+EX42*$O$42+EX43*$O$43+EX44*$O$44+EX45*$O$45+EX46*$O$46+EX47*$O$47+EX48*$O$48+EX49*$O$49+EX50*$O$50+EX51*$O$51+EX52*$O$52+EX53*$O$53+EX54*$O$54+EX55*$O$55+EX56*$O$56+EX57*$O$57+EX58*$O$58+EX59*$O$59+EX60*$O$60+EX61*$O$61+EX62*$O$62+EX63*$O$63+EX64*$O$64+EX65*$O$65+EX66*$O$66+EX67*$O$67+EX68*$O$68+EX69*$O$69+EX70*$O$70+EX71*$O$71+EX72*$O$72+EX73*$O$73+EX74*$O$74+EX75*$O$75+EX76*$O$76+EX77*$O$77+EX78*$O$78+EX79*$O$79+EX80*$O$80+EX81*$O$81+EX82*$O$82+EX83*$O$83+EX84*$O$84+EX85*$O$85+EX86*$O$86+EX87*$O$87+EX88*$O$88+EX89*$O$89+EX90*$O$90+EX91*$O$91+EX92*$O$92+EX93*$O$93+EX94*$O$94+EX95*$O$95+EX96*$O$96+EX97*$O$97+EX98*$O$98+EX99*$O$99+EX100*$O$100+EX102*$O$102+EX103*$O$103+EX104*$O$104+EX105*$O$105+EX106*$O$106+EX107*$O$107+EX108*$O$108+EX109*$O$109+EX110*$O$110+EX111*$O$111+EX112*$O$112+EX101*$O$101","v":501.2484},{"$f":"EY5*$O$5+EY6*$O$6+EY7*$O$7+EY8*$O$8+EY9*$O$9+EY10*$O$10+EY11*$O$11+EY12*$O$12+EY13*$O$13+EY14*$O$14+EY15*$O$15+EY16*$O$16+EY17*$O$17+EY18*$O$18+EY19*$O$19+EY20*$O$20+EY21*$O$21+EY22*$O$22+EY23*$O$23+EY24*$O$24+EY25*$O$25+EY26*$O$26+EY27*$O$27+EY28*$O$28+EY29*$O$29+EY30*$O$30+EY31*$O$31+EY32*$O$32+EY33*$O$33+EY34*$O$34+EY35*$O$35+EY36*$O$36+EY37*$O$37+EY38*$O$38+EY39*$O$39+EY40*$O$40+EY41*$O$41+EY42*$O$42+EY43*$O$43+EY44*$O$44+EY45*$O$45+EY46*$O$46+EY47*$O$47+EY48*$O$48+EY49*$O$49+EY50*$O$50+EY51*$O$51+EY52*$O$52+EY53*$O$53+EY54*$O$54+EY55*$O$55+EY56*$O$56+EY57*$O$57+EY58*$O$58+EY59*$O$59+EY60*$O$60+EY61*$O$61+EY62*$O$62+EY63*$O$63+EY64*$O$64+EY65*$O$65+EY66*$O$66+EY67*$O$67+EY68*$O$68+EY69*$O$69+EY70*$O$70+EY71*$O$71+EY72*$O$72+EY73*$O$73+EY74*$O$74+EY75*$O$75+EY76*$O$76+EY77*$O$77+EY78*$O$78+EY79*$O$79+EY80*$O$80+EY81*$O$81+EY82*$O$82+EY83*$O$83+EY84*$O$84+EY85*$O$85+EY86*$O$86+EY87*$O$87+EY88*$O$88+EY89*$O$89+EY90*$O$90+EY91*$O$91+EY92*$O$92+EY93*$O$93+EY94*$O$94+EY95*$O$95+EY96*$O$96+EY97*$O$97+EY98*$O$98+EY99*$O$99+EY100*$O$100+EY102*$O$102+EY103*$O$103+EY104*$O$104+EY105*$O$105+EY106*$O$106+EY107*$O$107+EY108*$O$108+EY109*$O$109+EY110*$O$110+EY111*$O$111+EY112*$O$112+EY101*$O$101","v":1167.06},9984,524.75,781.26,705.05,1098.81,1163.1000000000001,1243.4015999999999,936.96839999999997,673.26,589.5,1187.9712,1435,329.916,912.69540000000006,552.66,289.26,514.44000000000005,2064.39,403.96,768,1047.5,12455.995200000001,2194.5,1465.3055999999999,485.22,442.25,264.12,null,null,null,null,{"$f":"SUM(P116:GC116)","v":212468.5910000001}]
[null,"الخصم",null,null,null,null,null,null,null,null,null,null,null,null,null,{"$f":"P116*7/100","v":32.111687999999994},{"$f":"Q116*7/100","v":78.254400000000004},{"$f":"R116*12/100","v":287.634816},{"$f":"S116*7/100","v":32.151671999999998},29.4,42.727271999999992,{"$f":"V116*10/100","v":208.47600000000003},44.351999999999997,{"$f":"X116*6/100","v":40.122575999999995},64.260000000000005,40.653647999999997,83.708687999999981,57.872808000000006,{"$f":"AC116*10/100","v":127.39535999999998},{"$f":"AD116*12/100","v":374.72803200000004},27.712943999999997,13.406399999999998,28.258775999999997,69.365183999999999,60.000443999999995,112.82880000000002,51.380112000000011,77.49839999999999,{"$f":"AM116*7/100","v":141.838368},{"$f":"AN116*17.81/100","v":2778.274512},38.821607999999998,40.496400000000001,78.740507999999991,15.96,82.185431999999977,13.498800000000001,384.21524399999993,7.3920000000000003,{"$f":"AW116*12/100","v":312.16891199999998},12.474,34.314000000000007,45.719435999999995,63.117600000000003,125.56038599999999,27.9986,13.44,14.784000000000001,52.516800000000003,{"$f":"BG116*6.6/100","v":53.437546799999993},23.097311999999999,{"$f":"BI116*12/100","v":341.97427200000004},63.103991999999998,36.897000000000006,44.163000000000004,{"$f":"BM116*12/100","v":374.72803200000004},17.256399999999999,36.963360000000002,31.409279999999999,{"$f":"BQ116*14.68/100","v":843.24330456000007},63.638400000000011,61.522818000000008,110.92200000000001,9.9624000000000006,60.992399999999996,22.175999999999995,{"$f":"BX116*4.6/100","v":20.2491816},{"$f":"BY116*12/100","v":352.22399999999999},{"$f":"BZ116*7/100","v":27.677999999999997},12.908447999999998,33.512808,41.578992,{"$f":"CD116*10/100","v":238.2},{"$f":"CE116*5.2/100","v":34.318440000000002},{"$f":"CF116*9.1/100","v":139.42383000000001},{"$f":"CG116*7/100","v":32.287500000000001},{"$f":"CH116*7/100","v":125.63319999999997},{"$f":"CI116*12/100","v":1374.371232},{"$f":"CJ116*7/100","v":29.568000000000001},{"$f":"CK116*7/100","v":41.128247999999992},15.96,20.890799999999999,30.496199999999998,34.067599999999999,56.023799999999994,22.910999999999998,37.962792,99.664599999999993,{"$f":"CT116*6.55/100","v":50.70093},{"$f":"CU116*12/100","v":157.67827199999999},{"$f":"CV116*7/100","v":57.376199999999997},{"$f":"CW116*6.1/100","v":41.278541399999995},{"$f":"CX116*7/100","v":60.992399999999996},40.437600000000003,13.44,13.498800000000001,57.525999999999996,35.105615999999998,36.503711999999993,23.097311999999999,64.810367999999997,52.812143999999996,20.890799999999999,{"$f":"DI116*7/100","v":273.23919000000001},{"$f":"DJ116*7/100","v":54.516168},13.856471999999998,194.20934399999999,65.225999999999999,38.908799999999999,{"$f":"DO116*6.8/100","v":51.829545600000003},{"$f":"DP116*6.4/100","v":53.007360000000006},{"$f":"DQ116*7/100","v":74.55},{"$f":"DR116*7/100","v":67.108943999999994},{"$f":"DS116*7/100","v":43.994999999999997},54.431999999999995,13.86,{"$f":"DV116*16.982/100","v":1735.6487064},{"$f":"DW116*7.1/100","v":104.50489999999999},{"$f":"DX116*7/100","v":74.432400000000001},{"$f":"DY116*7/100","v":53.76},{"$f":"DZ116*7/100","v":20.248200000000001},{"$f":"EA116*6.9/100","v":99.68292000000001},{"$f":"EB116*7/100","v":17.552807999999999},{"$f":"EC116*7/100","v":33.688199999999995},47.896800000000006,47.67,135.094638,46.402999999999999,27.712943999999997,74.55,{"$f":"EJ116*6.9/100","v":95.986562399999997},{"$f":"EK116*6.9/100","v":121.8281526},{"$f":"EL116*5/100","v":33},{"$f":"EM116*6.1/100","v":64.761943199999976},{"$f":"EN116*7/100","v":51.567599999999999},15.96,26.922000000000004,{"$f":"EQ116*8/100","v":128.40479999999999},{"$f":"ER116*8.15/100","v":117.28175999999999},{"$f":"ES116*7/100","v":20.79},{"$f":"ET116*7/100","v":19.4544},106.255296,{"$f":"EV116*6.9/100","v":41.681519999999999},{"$f":"EW116*7/100","v":67.636799999999994},{"$f":"EX116*7/100","v":35.087388000000004},{"$f":"EY116*9.2/100","v":107.36951999999999},{"$f":"EZ116*14.66/100","v":1463.6544000000001},{"$f":"FA116*7/100","v":36.732500000000002},54.688199999999995,{"$f":"FC116*6.39/100","v":45.052694999999993},{"$f":"FD116*7/100","v":76.916700000000006},81.417000000000002,87.038111999999998,65.587788000000003,47.1282,41.265000000000001,83.157983999999999,{"$f":"FK116*12/100","v":172.2},{"$f":"FL116*4/100","v":13.19664},{"$f":"FM116*7/100","v":63.888677999999999},38.686199999999999,20.248200000000001,36.010800000000003,{"$f":"FQ116*6.8/100","v":140.37851999999998},{"$f":"FR116*5/100","v":20.198},{"$f":"FS116*7/100","v":53.76},73.325000000000003,{"$f":"FU116*14.658/100","v":1825.799776416},{"$f":"FV116*12.05/100","v":264.43725000000001},{"$f":"FW116*10/100","v":146.53055999999998},{"$f":"FX116*7.1/100","v":34.450620000000001},{"$f":"FY116*7/100","v":30.9575},18.488400000000002,null,null,null,null,21617.278315975989]
[null,"الصافي",null,null,null,null,null,null,null,null,null,null,null,null,null,{"$f":"P116-P117","v":426.62671199999994},1039.6656,2109.3219840000002,427.15792799999997,390.6,567.662328,1876.2840000000001,589.24800000000005,628.58702399999993,853.74,540.112752,1112.1297119999999,768.88159200000007,1146.5582399999998,2748.005568,368.18625599999996,178.11359999999999,375.43802399999998,921.56601599999999,797.14875599999993,1499.0112000000001,682.621488,1029.6215999999999,1884.4240320000001,12821.245488,515.77279199999998,538.02359999999999,1046.1238919999998,212.04,1091.8921679999999,179.34120000000001,5104.5739559999993,98.208000000000013,2289.2386879999999,165.72600000000003,455.88600000000002,607.41536399999995,838.56240000000003,1668.1594140000002,371.98140000000001,178.56,196.41600000000003,697.72320000000002,756.22225319999995,306.86428799999999,2507.8113280000002,838.38160800000003,490.20300000000003,586.73699999999997,2748.005568,229.2636,491.08463999999998,417.29471999999993,4900.920895440001,845.48160000000007,817.37458200000003,1473.6780000000001,132.35759999999999,810.32759999999996,294.62399999999997,419.95041840000005,2582.9760000000001,367.72199999999998,171.497952,{"$f":"CB116-CB117","v":445.24159199999997},552.40660800000001,2143.8000000000002,625.65156000000002,1392.7061700000002,428.96249999999998,1669.1267999999998,10078.722368000001,392.83200000000005,546.41815199999996,212.04,277.54919999999998,405.16379999999998,452.61239999999998,744.31619999999998,304.38900000000001,504.36280800000003,1324.1153999999999,723.35907000000009,1156.3073279999999,762.28379999999993,635.41885860000002,810.32759999999996,537.24240000000009,178.56,179.34120000000001,764.274,466.40318399999995,484.97788799999995,306.86428799999999,861.05203199999994,701.64705600000002,277.54919999999998,3630.1778100000001,724.28623200000004,184.09312799999998,2580.2098559999999,866.57399999999996,516.93119999999999,710.36965440000006,775.23263999999995,990.45,891.59025599999995,584.505,723.16800000000001,184.14,8484.8712936000011,1367.3951000000002,988.88759999999991,714.24,269.01179999999999,1344.9970800000001,233.20159199999998,447.5718,636.34320000000002,633.33000000000004,1794.8287620000001,616.49699999999996,368.18625599999996,990.45,1295.1230376000001,1643.7972473999998,627,996.90925679999975,{"$f":"EN116-EN117","v":685.11240000000009},212.04,357.678,1476.6551999999999,1321.7582399999999,276.20999999999998,258.46559999999999,1411.677504,562.39848000000006,898.6031999999999,466.16101200000003,1059.69048,8520.3456000000006,488.01749999999998,726.57179999999994,659.99730499999998,1021.8933,1081.6830000000002,1156.363488,871.38061199999993,626.1318,548.23500000000001,1104.813216,1262.8,316.71935999999999,848.80672200000004,513.97379999999998,269.01179999999999,478.42920000000004,1924.0114799999999,383.762,714.24,974.17499999999995,10630.195423584002,1930.0627500000001,1318.77504,450.76938000000001,411.29250000000002,245.63159999999999,null,null,null,null,{"$f":"SUM(P118:GC118)","v":190851.31268402393}]
[]
[null,null,null,null,null,null,null,null,null,null,null,null,null,null,null,null,null,null,null,null,null,null,null,null,null,null,null,null,null,{"$f":"98.96+4305","v":4403.96}]
[null,null,null,null,null,null,null,null,null,null,null,null,null,null,null,null,{"$f":"COUNT(Q5:Q112)","v":2},{"$f":"COUNT(R5:R112)","v":2},2,1,4,6,1,3,2,3,3,2,5,1,1,1,2,4,2,4,3,6,9,3,2,1,9,1,4,1,17,1,3,1,3,4,3,5,2,1,1,4,3,1,4,2,3,2,1,1,1,2,5,4,7,5,1,3,1,2,1,2,1,2,1,{"$f":"COUNT(CD5:CD112)","v":2},2,3,1,5,30,1,4,1,2,1,3,3,3,3,5,4,3,2,3,1,2,1,1,3,1,3,1,2,2,2,1,1,1,5,2,1,3,2,2,3,2,3,1,1,3,2,1,1,4,1,2,2,2,3,3,1,2,4,6,2,5,3,1,{"$f":"COUNT(EP5:EP112)","v":2},4,7,1,1,2,2,4,4,2,1,2,5,5,3,4,5,5,2,2,1,1,1,2,2,1,2,5,5,1,2,4,1,2,4,2,2]
[]
[]
[]
[]
[null,null,null,null,null,null,null,null,null,null,null,null,null,null,null,null,null,null,null,null,null,null,null,"نل"]